Workbook

Sheet Atrium

Sheet Florestal
B1: Premissas financeiras
B2: Ano Zero: | C2: 2023 | D2: PIS: | E2: 0.0065 | F2: sobre o faturamento
B3: Taxa de inflação esperada: | C3: 0 | D3: Cofins: | E3: 0.03 | F3: sobre o faturamento
B4: Taxa nominal de retorno desejado: | C4: 0.05 | D4: IRPJ: | E4: 0.02 | F4: (8% sobre faturamento = Lucro presumido) * (alíquota 25%)
B5: Imposto sobre lucro presumido rural | C5: =SUM(Florestal!E2:E5) -> 0.0673 | D5: CSLL: | E5: 0.0108 | F5: (12% sobre faturamento = base de cálculo) * (alíquota de 9%)
B7: Preços (R$/m3)
B8: Produtos | C8: Preço (R$/m3)
B9: CEL | C9: 150
B10: BIO | C10: 0
B11: XX1 | C11: 0
B12: XX2 | C12: 0
B14: Intervenção de colheita e produtividades (m3/ha)
B15: Intervenções | C15: Idade | D15: Produção (m3/ha) | E15: =CONCATENATE("% Vol ",B9) -> % Vol CEL | F15: =B9 -> CEL | G15: =CONCATENATE("% Vol ",B10) -> % Vol BIO | H15: =B10 -> BIO | I15: =CONCATENATE("% Vol ",B11) -> % Vol XX1 | J15: =B11 -> XX1 | K15: =CONCATENATE("% Vol ",B12) -> % Vol XX2 | L15: =B12 -> XX2
B16: CR5 | C16: 5 | D16: 224.07 | E16: 1 | F16: =E16*$D16 -> 224.07 | G16: 0 | H16: =G16*$D16 -> 0 | I16: 0 | J16: =I16*$D16 -> 0 | K16: 0 | L16: =K16*$D16 -> 0
B17: CR6 | C17: 6 | D17: 265.1495 | E17: 1 | F17: =E17*$D17 -> 265.1495 | G17: 0 | H17: =G17*$D17 -> 0 | I17: 0 | J17: 0 | K17: 0 | L17: 0
B18: CR7 | C18: 7 | D18: 296.626 | E18: 1 | F18: 296.626 | G18: 0 | H18: 0 | I18: 0 | J18: 0 | K18: 0 | L18: 0
B19: CR8 | C19: 8 | D19: 321.167 | E19: 1 | F19: 321.167 | G19: 0 | H19: 0 | I19: 0 | J19: 0 | K19: 0 | L19: 0
B20: CC5 | C20: 5 | D20: 224.07 | E20: 1 | F20: 224.07 | G20: 0 | H20: 0 | I20: 0 | J20: 0 | K20: 0 | L20: 0
B21: CC6 | C21: 6 | D21: 265.1495 | E21: 1 | F21: 265.1495 | G21: 0 | H21: 0 | I21: 0 | J21: 0 | K21: 0 | L21: 0
B22: CC7 | C22: 7 | D22: 296.626 | E22: 1 | F22: 296.626 | G22: 0 | H22: =G22*$D22 -> 0 | I22: 0 | J22: 0 | K22: 0 | L22: 0
B23: CC8 | C23: 8 | D23: 321.167 | E23: 1 | F23: 321.167 | G23: 0 | H23: 0 | I23: 0 | J23: 0 | K23: 0 | L23: 0
B24: CF5 | C24: 5 | D24: 203.7 | E24: 1 | F24: 203.7 | G24: 0 | H24: 0 | I24: 0 | J24: 0 | K24: 0 | L24: 0
B25: CF6 | C25: 6 | D25: 241.045 | E25: 1 | F25: 241.045 | G25: 0 | H25: 0 | I25: 0 | J25: 0 | K25: 0 | L25: 0
B26: CF7 | C26: 7 | D26: 269.66 | E26: 1 | F26: 269.66 | G26: 0 | H26: 0 | I26: 0 | J26: 0 | K26: 0 | L26: 0
B27: CF8 | C27: 8 | D27: 291.97 | E27: 1 | F27: 291.97 | G27: 0 | H27: 0 | I27: 0 | J27: 0 | K27: 0 | L27: 0
B29: Intervenções de manejo e custos (R$)
B30: Intervenção | C30: % da Área para custo | D30: Despesas (R$/ha) | L30: Sigla | M30: Descrição
B31: X | C31: 0 | D31: 0 | F31: Gestão Florestal (R$/ha) | I31: -100 | L31: =B31 -> X | M31: Nada
B32: CMP | C32: 1 | D32: 0 | F32: Investimento Máquinas Florestais | I32: 0.03 | J32: s/ desp operacionais | L32: CMP | M32: Compra da terra
B33: IAR | C33: 1 | D33: 0 | F33: Colheita (R$/m3) | I33: -50 | L33: IAR | M33: Início do Contrato de arrendamento
B34: IMP | C34: 1 | D34: -5000 | L34: IMP | M34: Implantação
B35: MN1 | C35: 1 | D35: -1000 | F35: Regiões | G35: Prç Terra | H35: Arrendam. | I35: %Região | J35: Frete | L35: MN1 | M35: Manutenção no ano 1
B36: MN2 | C36: 1 | D36: -250 | G36: (R$/ha) | H36: (*) | J36: (R$/m3) | L36: MN2 | M36: Manutenção no ano 2
B37: MN3 | C37: 1 | D37: -250 | F37: 50KM | G37: 5000 | H37: -445.74 | I37: 0.5 | J37: -20 | L37: MN3 | M37: Manutenção no ano 3
B38: MN4 | C38: 1 | D38: -250 | F38: 150KM | G38: 4000 | H38: -407.1 | I38: 0.5 | J38: -25 | L38: MN4 | M38: Manutenção no ano 4
B39: MN5 | C39: 1 | D39: -250 | F39: XX | G39: 0 | H39: 0 | I39: 0 | J39: 0 | L39: MN5 | M39: Manutenção no ano 5
B40: MN6 | C40: 1 | D40: -250 | H40: (*) R$/ha.ano | L40: MN6 | M40: Manutenção no ano 6
B41: MN7 | C41: 1 | D41: -250 | L41: MN7 | M41: Manutenção no ano 7
B42: =B16 -> CR5 | C42: 1 | D42: -4000 | L42: CR5 | M42: Corte da primeira rotação seguido de reforma na idade 5 anos
B43: =B17 -> CR6 | C43: 1 | D43: -4000 | L43: CR6 | M43: Corte da primeira rotação seguido de reforma na idade 6 anos
B44: CR7 | C44: 1 | D44: -4000 | L44: CR7 | M44: Corte da primeira rotação seguido de reforma na idade 7 anos
B45: CR8 | C45: 1 | D45: -4000 | L45: CR8 | M45: Corte da primeira rotação seguido de reforma na idade 8 anos
B46: CC5 | C46: 1 | D46: -2500 | L46: CC5 | M46: Corte da primeira rotação seguido de condução da brotação na idade 5 anos
B47: CC6 | C47: 1 | D47: -2500 | L47: CC6 | M47: Corte da primeira rotação seguido de condução da brotação na idade 6 anos
B48: CC7 | C48: 1 | D48: -2500 | L48: CC7 | M48: Corte da primeira rotação seguido de condução da brotação na idade 7 anos
B49: CC8 | C49: 1 | D49: -2500 | L49: CC8 | M49: Corte da primeira rotação seguido de condução da brotação na idade 8 anos
B50: CF5 | C50: 1 | D50: 0 | L50: CF5 | M50: Corte da segunda rotação aos 5 anos
B51: CF6 | C51: 1 | D51: 0 | L51: CF6 | M51: Corte da segunda rotação aos 6 anos
B52: CF7 | C52: 1 | D52: 0 | L52: CF7 | M52: Corte da segunda rotação aos 7 anos
B53: CF8 | C53: 1 | D53: 0 | L53: CF8 | M53: Corte da segunda rotação aos 8 anos
B54: LAR | C54: 1 | D54: 0 | L54: LAR | M54: Liberação do contrato de arrendamento
B55: VND | C55: 1 | D55: 0 | L55: VND | M55: Venda da terra
B57: Cálculadora de área necessária
B58: Demanda mensal | C58: 40000 | D58: m3/mês
B59: Meses | C59: 12 | D59: meses
B60: Demanda Anual | C60: =C58*C59 -> 480000 | D60: m3/ano
B61: IMA (6 anos) | C61: =241/6 -> 40.16666667 | D61: m3/ha.ano
B62: Área necessária | C62: =C60/C61 -> 11950.20747 | D62: ha
B63: Aproveitamento | C63: 0.6
B64: Área Total | C64: =C62/C63 -> 19917.01245 | D64: ha
B66: Agendamento das intervenções
E68: =E69-$E$69+1 -> 1 | F68: 2 | G68: 3 | H68: 4 | I68: 5 | J68: 6 | K68: 7 | L68: 8 | M68: 9 | N68: 10 | O68: 11 | P68: 12 | Q68: 13 | R68: 14 | S68: 15 | T68: 16 | U68: 17 | V68: 18 | W68: 19 | X68: 20 | Y68: 21 | Z68: 22 | AA68: 23 | AB68: 24 | AC68: 25 | AD68: 26
E69: =C2+1 -> 2024 | F69: =E69+1 -> 2025 | G69: =F69+1 -> 2026 | H69: 2027 | I69: 2028 | J69: 2029 | K69: 2030 | L69: 2031 | M69: 2032 | N69: 2033 | O69: 2034 | P69: 2035 | Q69: 2036 | R69: 2037 | S69: 2038 | T69: 2039 | U69: 2040 | V69: 2041 | W69: 2042 | X69: 2043 | Y69: 2044 | Z69: 2045 | AA69: 2046 | AB69: 2047 | AC69: 2048 | AD69: 2049
C70: Área | D70: Gleba | E70: (use os códigos de intervenção para agendar as prescrições em cada gleba)
B71: Planejamento | C71: 1000 | D71: Tlh01 | E71: CMP | F71: IMP | G71: MN1 | H71: MN2 | I71: MN3 | J71: MN4 | K71: MN5 | L71: CC6 | M71: MN1 | N71: MN2 | O71: MN3 | P71: MN4 | Q71: MN5 | R71: CR6 | S71: MN1 | T71: MN2 | U71: MN3 | V71: MN4 | W71: MN5 | X71: CF6 | Y71: VND | Z71: X | AA71: X | AB71: X | AC71: X | AD71: X
C72: 1000 | D72: Tlh02 | E72: X | F72: CMP | G72: IMP | H72: MN1 | I72: MN2 | J72: MN3 | K72: MN4 | L72: MN5 | M72: CC6 | N72: MN1 | O72: MN2 | P72: MN3 | Q72: MN4 | R72: MN5 | S72: CR6 | T72: MN1 | U72: MN2 | V72: MN3 | W72: MN4 | X72: MN5 | Y72: CF6 | Z72: VND | AA72: X | AB72: X | AC72: X | AD72: X
C73: 1000 | D73: Tlh03 | E73: x | F73: X | G73: CMP | H73: IMP | I73: MN1 | J73: MN2 | K73: MN3 | L73: MN4 | M73: MN5 | N73: CC6 | O73: MN1 | P73: MN2 | Q73: MN3 | R73: MN4 | S73: MN5 | T73: CR6 | U73: MN1 | V73: MN2 | W73: MN3 | X73: MN4 | Y73: MN5 | Z73: CF6 | AA73: VND | AB73: X | AC73: X | AD73: X
C74: 1000 | D74: Tlh04 | E74: x | F74: X | G74: X | H74: CMP | I74: IMP | J74: MN1 | K74: MN2 | L74: MN3 | M74: MN4 | N74: MN5 | O74: CC6 | P74: MN1 | Q74: MN2 | R74: MN3 | S74: MN4 | T74: MN5 | U74: CR6 | V74: MN1 | W74: MN2 | X74: MN3 | Y74: MN4 | Z74: MN5 | AA74: CF6 | AB74: VND | AC74: X | AD74: X
C75: 1000 | D75: Tlh05 | E75: X | F75: X | G75: X | H75: X | I75: CMP | J75: IMP | K75: MN1 | L75: MN2 | M75: MN3 | N75: MN4 | O75: MN5 | P75: CC6 | Q75: MN1 | R75: MN2 | S75: MN3 | T75: MN4 | U75: MN5 | V75: CR6 | W75: MN1 | X75: MN2 | Y75: MN3 | Z75: MN4 | AA75: MN5 | AB75: CF6 | AC75: VND | AD75: X
C76: 1000 | D76: Tlh06 | E76: X | F76: X | G76: X | H76: X | I76: X | J76: CMP | K76: IMP | L76: MN1 | M76: MN2 | N76: MN3 | O76: MN4 | P76: MN5 | Q76: CC6 | R76: MN1 | S76: MN2 | T76: MN3 | U76: MN4 | V76: MN5 | W76: CR6 | X76: MN1 | Y76: MN2 | Z76: MN3 | AA76: MN4 | AB76: MN5 | AC76: CF6 | AD76: VND
C77: 1000 | D77: Tlh07 | E77: CMP | F77: IMP | G77: MN1 | H77: MN2 | I77: MN3 | J77: MN4 | K77: MN5 | L77: CC6 | M77: MN1 | N77: MN2 | O77: MN3 | P77: MN4 | Q77: MN5 | R77: CR6 | S77: MN1 | T77: MN2 | U77: MN3 | V77: MN4 | W77: MN5 | X77: CF6 | Y77: VND | Z77: X | AA77: X | AB77: X | AC77: X | AD77: X
C78: 1000 | D78: Tlh08 | E78: X | F78: CMP | G78: IMP | H78: MN1 | I78: MN2 | J78: MN3 | K78: MN4 | L78: MN5 | M78: CC6 | N78: MN1 | O78: MN2 | P78: MN3 | Q78: MN4 | R78: MN5 | S78: CR6 | T78: MN1 | U78: MN2 | V78: MN3 | W78: MN4 | X78: MN5 | Y78: CF6 | Z78: VND | AA78: X | AB78: X | AC78: X | AD78: X
C79: 1000 | D79: Tlh09 | E79: x | F79: X | G79: CMP | H79: IMP | I79: MN1 | J79: MN2 | K79: MN3 | L79: MN4 | M79: MN5 | N79: CC6 | O79: MN1 | P79: MN2 | Q79: MN3 | R79: MN4 | S79: MN5 | T79: CR6 | U79: MN1 | V79: MN2 | W79: MN3 | X79: MN4 | Y79: MN5 | Z79: CF6 | AA79: VND | AB79: X | AC79: X | AD79: X
C80: 1000 | D80: Tlh10 | E80: x | F80: X | G80: X | H80: CMP | I80: IMP | J80: MN1 | K80: MN2 | L80: MN3 | M80: MN4 | N80: MN5 | O80: CC6 | P80: MN1 | Q80: MN2 | R80: MN3 | S80: MN4 | T80: MN5 | U80: CR6 | V80: MN1 | W80: MN2 | X80: MN3 | Y80: MN4 | Z80: MN5 | AA80: CF6 | AB80: VND | AC80: X | AD80: X
C81: 1000 | D81: Tlh11 | E81: X | F81: X | G81: X | H81: X | I81: CMP | J81: IMP | K81: MN1 | L81: MN2 | M81: MN3 | N81: MN4 | O81: MN5 | P81: CC6 | Q81: MN1 | R81: MN2 | S81: MN3 | T81: MN4 | U81: MN5 | V81: CR6 | W81: MN1 | X81: MN2 | Y81: MN3 | Z81: MN4 | AA81: MN5 | AB81: CF6 | AC81: VND | AD81: X
C82: 1000 | D82: Tlh12 | E82: X | F82: X | G82: X | H82: X | I82: X | J82: CMP | K82: IMP | L82: MN1 | M82: MN2 | N82: MN3 | O82: MN4 | P82: MN5 | Q82: CC6 | R82: MN1 | S82: MN2 | T82: MN3 | U82: MN4 | V82: MN5 | W82: CR6 | X82: MN1 | Y82: MN2 | Z82: MN3 | AA82: MN4 | AB82: MN5 | AC82: CF6 | AD82: VND
E83: X | F83: X | G83: X | H83: X | I83: X | J83: X | K83: X | L83: X | M83: X | N83: X | O83: X | P83: X | Q83: X | R83: X | S83: X | T83: X | U83: X | V83: X | W83: X | X83: X | Y83: X | Z83: X | AA83: X | AB83: X | AC83: X | AD83: X
E84: X | F84: X | G84: X | H84: X | I84: X | J84: X | K84: X | L84: X | M84: X | N84: X | O84: X | P84: X | Q84: X | R84: X | S84: X | T84: X | U84: X | V84: X | W84: X | X84: X | Y84: X | Z84: X | AA84: X | AB84: X | AC84: X | AD84: X
B85: Área Total (ha): | C85: =SUM(C71:C84) -> 12000 | D85: Ganhos Prod.>> | E85: 1 | F85: 1 | G85: 1 | H85: 1 | I85: 1 | J85: 1 | K85: 1 | L85: 1 | M85: 1 | N85: 1 | O85: 1 | P85: 1 | Q85: 1 | R85: 1 | S85: 1 | T85: 1 | U85: 1 | V85: 1 | W85: 1 | X85: 1 | Y85: 1 | Z85: 1 | AA85: 1 | AB85: 1 | AC85: 1 | AD85: 1
B87: Totalização das áreas por intervenção
E89: =E$68 -> 1 | F89: 2 | G89: 3 | H89: 4 | I89: 5 | J89: 6 | K89: 7 | L89: 8 | M89: 9 | N89: 10 | O89: 11 | P89: 12 | Q89: 13 | R89: 14 | S89: 15 | T89: 16 | U89: 17 | V89: 18 | W89: 19 | X89: 20 | Y89: 21 | Z89: 22 | AA89: 23 | AB89: 24 | AC89: 25 | AD89: 26
E90: =E$69 -> 2024 | F90: 2025 | G90: 2026 | H90: 2027 | I90: 2028 | J90: 2029 | K90: 2030 | L90: 2031 | M90: 2032 | N90: 2033 | O90: 2034 | P90: 2035 | Q90: 2036 | R90: 2037 | S90: 2038 | T90: 2039 | U90: 2040 | V90: 2041 | W90: 2042 | X90: 2043 | Y90: 2044 | Z90: 2045 | AA90: 2046 | AB90: 2047 | AC90: 2048 | AD90: 2049
B91: Área de Implantação (ha) | C91: IMP | D91: =SUM(E91:AD91) -> 12000 | E91: =SUMIF(E$71:E$84,$C91,$C$71:$C$84) -> 0 | F91: 2000 | G91: 2000 | H91: 2000 | I91: 2000 | J91: 2000 | K91: 2000 | L91: 0 | M91: 0 | N91: 0 | O91: 0 | P91: 0 | Q91: 0 | R91: 0 | S91: 0 | T91: 0 | U91: 0 | V91: 0 | W91: 0 | X91: 0 | Y91: 0 | Z91: 0 | AA91: 0 | AB91: 0 | AC91: 0 | AD91: 0
B93: Área comprada (ha) | C93: CMP | D93: =SUM(E93:AD93) -> 12000 | E93: =SUMIF(E$71:E$84,$C93,$C$71:$C$84) -> 2000 | F93: =SUMIF(F$71:F$84,$C93,$C$71:$C$84) -> 2000 | G93: =SUMIF(G$71:G$84,$C93,$C$71:$C$84) -> 2000 | H93: 2000 | I93: 2000 | J93: 2000 | K93: 0 | L93: 0 | M93: 0 | N93: 0 | O93: 0 | P93: 0 | Q93: 0 | R93: 0 | S93: 0 | T93: 0 | U93: 0 | V93: 0 | W93: 0 | X93: 0 | Y93: 0 | Z93: 0 | AA93: 0 | AB93: 0 | AC93: 0 | AD93: 0
C94: Total | D94: 20000 | E94: =E93/$C$63 -> 3333.333333 | F94: 3333.333333 | G94: 3333.333333 | H94: 3333.333333 | I94: 3333.333333 | J94: 3333.333333 | K94: 0 | L94: 0 | M94: 0 | N94: 0 | O94: 0 | P94: 0 | Q94: 0 | R94: 0 | S94: 0 | T94: 0 | U94: 0 | V94: 0 | W94: 0 | X94: 0 | Y94: 0 | Z94: 0 | AA94: 0 | AB94: 0 | AC94: 0 | AD94: 0
B95: Área Arrendamento (ha) | C95: IAR | D95: 0 | E95: =SUMIF(E$71:E$84,$C95,$C$71:$C$84) -> 0 | F95: =SUMIF(F$71:F$84,$C95,$C$71:$C$84) -> 0 | G95: 0 | H95: 0 | I95: 0 | J95: 0 | K95: 0 | L95: 0 | M95: 0 | N95: 0 | O95: 0 | P95: 0 | Q95: 0 | R95: 0 | S95: 0 | T95: 0 | U95: 0 | V95: 0 | W95: 0 | X95: 0 | Y95: 0 | Z95: 0 | AA95: 0 | AB95: 0 | AC95: 0 | AD95: 0
C96: Total | D96: 0 | E96: =E95/$C$63 -> 0 | F96: 0 | G96: 0 | H96: 0 | I96: 0 | J96: 0 | K96: 0 | L96: 0 | M96: 0 | N96: 0 | O96: 0 | P96: 0 | Q96: 0 | R96: 0 | S96: 0 | T96: 0 | U96: 0 | V96: 0 | W96: 0 | X96: 0 | Y96: 0 | Z96: 0 | AA96: 0 | AB96: 0 | AC96: 0 | AD96: 0
B97: Área vendida (ha) | C97: VND | D97: 12000 | E97: =SUMIF(E$71:E$84,$C97,$C$71:$C$84) -> 0 | F97: =SUMIF(F$71:F$84,$C97,$C$71:$C$84) -> 0 | G97: 0 | H97: 0 | I97: 0 | J97: 0 | K97: 0 | L97: 0 | M97: 0 | N97: 0 | O97: 0 | P97: 0 | Q97: 0 | R97: 0 | S97: 0 | T97: 0 | U97: 0 | V97: 0 | W97: 0 | X97: 0 | Y97: 2000 | Z97: 2000 | AA97: 2000 | AB97: 2000 | AC97: 2000 | AD97: 2000
C98: Total | D98: 20000 | E98: =E97/$C$63 -> 0 | F98: 0 | G98: 0 | H98: 0 | I98: 0 | J98: 0 | K98: 0 | L98: 0 | M98: 0 | N98: 0 | O98: 0 | P98: 0 | Q98: 0 | R98: 0 | S98: 0 | T98: 0 | U98: 0 | V98: 0 | W98: 0 | X98: 0 | Y98: 3333.333333 | Z98: 3333.333333 | AA98: 3333.333333 | AB98: 3333.333333 | AC98: 3333.333333 | AD98: 3333.333333
B99: Área Lib Arrend (ha) | C99: LAR | D99: 0 | E99: =SUMIF(E$71:E$84,$C99,$C$71:$C$84) -> 0 | F99: =SUMIF(F$71:F$84,$C99,$C$71:$C$84) -> 0 | G99: 0 | H99: 0 | I99: 0 | J99: 0 | K99: 0 | L99: 0 | M99: 0 | N99: 0 | O99: 0 | P99: 0 | Q99: 0 | R99: 0 | S99: 0 | T99: 0 | U99: 0 | V99: 0 | W99: 0 | X99: 0 | Y99: 0 | Z99: 0 | AA99: 0 | AB99: 0 | AC99: 0 | AD99: 0
C100: Total | D100: 0 | E100: =E99/$C$63 -> 0 | F100: 0 | G100: 0 | H100: 0 | I100: 0 | J100: 0 | K100: 0 | L100: 0 | M100: 0 | N100: 0 | O100: 0 | P100: 0 | Q100: 0 | R100: 0 | S100: 0 | T100: 0 | U100: 0 | V100: 0 | W100: 0 | X100: 0 | Y100: 0 | Z100: 0 | AA100: 0 | AB100: 0 | AC100: 0 | AD100: 0
B101: Área Própria(ha) | D101: =MAX(E101:AD101) -> 12000 | E101: =E93-E97 -> 2000 | F101: =E101+F93-F97 -> 4000 | G101: =F101+G93-G97 -> 6000 | H101: 8000 | I101: 10000 | J101: 12000 | K101: 12000 | L101: 12000 | M101: 12000 | N101: 12000 | O101: 12000 | P101: 12000 | Q101: 12000 | R101: 12000 | S101: 12000 | T101: 12000 | U101: 12000 | V101: 12000 | W101: 12000 | X101: 12000 | Y101: 10000 | Z101: 8000 | AA101: 6000 | AB101: 4000 | AC101: 2000 | AD101: 0
C102: Total | D102: 20000 | E102: =E94-E98 -> 3333.333333 | F102: =E102+F94-F98 -> 6666.666667 | G102: 10000 | H102: 13333.33333 | I102: 16666.66667 | J102: 20000 | K102: 20000 | L102: 20000 | M102: 20000 | N102: 20000 | O102: 20000 | P102: 20000 | Q102: 20000 | R102: 20000 | S102: 20000 | T102: 20000 | U102: 20000 | V102: 20000 | W102: 20000 | X102: 20000 | Y102: 16666.66667 | Z102: 13333.33333 | AA102: 10000 | AB102: 6666.666667 | AC102: 3333.333333 | AD102: 0
B103: Área arrendada(ha) | D103: 0 | E103: =E95-E99 -> 0 | F103: =E103+F95-F99 -> 0 | G103: =F103+G95-G99 -> 0 | H103: 0 | I103: 0 | J103: 0 | K103: 0 | L103: 0 | M103: 0 | N103: 0 | O103: 0 | P103: 0 | Q103: 0 | R103: 0 | S103: 0 | T103: 0 | U103: 0 | V103: 0 | W103: 0 | X103: 0 | Y103: 0 | Z103: 0 | AA103: 0 | AB103: 0 | AC103: 0 | AD103: 0
C104: Total | D104: 0 | E104: =E96-E100 -> 0 | F104: =E104+F96-F100 -> 0 | G104: =F104+G96-G100 -> 0 | H104: 0 | I104: 0 | J104: 0 | K104: 0 | L104: 0 | M104: 0 | N104: 0 | O104: 0 | P104: 0 | Q104: 0 | R104: 0 | S104: 0 | T104: 0 | U104: 0 | V104: 0 | W104: 0 | X104: 0 | Y104: 0 | Z104: 0 | AA104: 0 | AB104: 0 | AC104: 0 | AD104: 0
B105: Área de Gestão(ha) | D105: 12000 | E105: =E101+E103 -> 2000 | F105: =F101+F103 -> 4000 | G105: 6000 | H105: 8000 | I105: 10000 | J105: 12000 | K105: 12000 | L105: 12000 | M105: 12000 | N105: 12000 | O105: 12000 | P105: 12000 | Q105: 12000 | R105: 12000 | S105: 12000 | T105: 12000 | U105: 12000 | V105: 12000 | W105: 12000 | X105: 12000 | Y105: 10000 | Z105: 8000 | AA105: 6000 | AB105: 4000 | AC105: 2000 | AD105: 0
C106: Total | D106: 20000 | E106: =E102+E104 -> 3333.333333 | F106: =F102+F104 -> 6666.666667 | G106: 10000 | H106: 13333.33333 | I106: 16666.66667 | J106: 20000 | K106: 20000 | L106: 20000 | M106: 20000 | N106: 20000 | O106: 20000 | P106: 20000 | Q106: 20000 | R106: 20000 | S106: 20000 | T106: 20000 | U106: 20000 | V106: 20000 | W106: 20000 | X106: 20000 | Y106: 16666.66667 | Z106: 13333.33333 | AA106: 10000 | AB106: 6666.666667 | AC106: 3333.333333 | AD106: 0
B108: Despesas operacionais (mil R$) | E108: =E$68 -> 1 | F108: 2 | G108: 3 | H108: 4 | I108: 5 | J108: 6 | K108: 7 | L108: 8 | M108: 9 | N108: 10 | O108: 11 | P108: 12 | Q108: 13 | R108: 14 | S108: 15 | T108: 16 | U108: 17 | V108: 18 | W108: 19 | X108: 20 | Y108: 21 | Z108: 22 | AA108: 23 | AB108: 24 | AC108: 25 | AD108: 26
E109: =E$69 -> 2024 | F109: 2025 | G109: 2026 | H109: 2027 | I109: 2028 | J109: 2029 | K109: 2030 | L109: 2031 | M109: 2032 | N109: 2033 | O109: 2034 | P109: 2035 | Q109: 2036 | R109: 2037 | S109: 2038 | T109: 2039 | U109: 2040 | V109: 2041 | W109: 2042 | X109: 2043 | Y109: 2044 | Z109: 2045 | AA109: 2046 | AB109: 2047 | AC109: 2048 | AD109: 2049
B110: Despesas Operacionais: Plantio, Reforma, Condução e Manutenção (mil R$) | D110: =D71 -> Tlh01 | E110: =VLOOKUP(E71,$B$30:$D$55,3,0)*VLOOKUP(E71,$B$30:$D$55,2,0)*((1+Infla)^E$108)*$C71/1000 -> 0 | F110: -5000 | G110: -1000 | H110: -250 | I110: -250 | J110: -250 | K110: -250 | L110: -2500 | M110: -1000 | N110: -250 | O110: -250 | P110: -250 | Q110: -250 | R110: -4000 | S110: -1000 | T110: -250 | U110: -250 | V110: -250 | W110: -250 | X110: 0 | Y110: 0 | Z110: 0 | AA110: 0 | AB110: 0 | AC110: 0 | AD110: 0
D111: =D72 -> Tlh02 | E111: =VLOOKUP(E72,$B$30:$D$55,3,0)*VLOOKUP(E72,$B$30:$D$55,2,0)*((1+Infla)^E$108)*$C72/1000 -> 0 | F111: 0 | G111: -5000 | H111: -1000 | I111: -250 | J111: -250 | K111: -250 | L111: -250 | M111: -2500 | N111: -1000 | O111: -250 | P111: -250 | Q111: -250 | R111: -250 | S111: -4000 | T111: -1000 | U111: -250 | V111: -250 | W111: -250 | X111: -250 | Y111: 0 | Z111: 0 | AA111: 0 | AB111: 0 | AC111: 0 | AD111: 0
D112: Tlh03 | E112: =VLOOKUP(E73,$B$30:$D$55,3,0)*VLOOKUP(E73,$B$30:$D$55,2,0)*((1+Infla)^E$108)*$C73/1000 -> 0 | F112: 0 | G112: 0 | H112: -5000 | I112: -1000 | J112: -250 | K112: -250 | L112: -250 | M112: -250 | N112: -2500 | O112: -1000 | P112: -250 | Q112: -250 | R112: -250 | S112: -250 | T112: -4000 | U112: -1000 | V112: -250 | W112: -250 | X112: -250 | Y112: -250 | Z112: 0 | AA112: 0 | AB112: 0 | AC112: 0 | AD112: 0
D113: Tlh04 | E113: =VLOOKUP(E74,$B$30:$D$55,3,0)*VLOOKUP(E74,$B$30:$D$55,2,0)*((1+Infla)^E$108)*$C74/1000 -> 0 | F113: 0 | G113: 0 | H113: 0 | I113: -5000 | J113: -1000 | K113: -250 | L113: -250 | M113: -250 | N113: -250 | O113: -2500 | P113: -1000 | Q113: -250 | R113: -250 | S113: -250 | T113: -250 | U113: -4000 | V113: -1000 | W113: -250 | X113: -250 | Y113: -250 | Z113: -250 | AA113: 0 | AB113: 0 | AC113: 0 | AD113: 0
D114: Tlh05 | E114: =VLOOKUP(E75,$B$30:$D$55,3,0)*VLOOKUP(E75,$B$30:$D$55,2,0)*((1+Infla)^E$108)*$C75/1000 -> 0 | F114: 0 | G114: 0 | H114: 0 | I114: 0 | J114: -5000 | K114: -1000 | L114: -250 | M114: -250 | N114: -250 | O114: -250 | P114: -2500 | Q114: -1000 | R114: -250 | S114: -250 | T114: -250 | U114: -250 | V114: -4000 | W114: -1000 | X114: -250 | Y114: -250 | Z114: -250 | AA114: -250 | AB114: 0 | AC114: 0 | AD114: 0
D115: Tlh06 | E115: =VLOOKUP(E76,$B$30:$D$55,3,0)*VLOOKUP(E76,$B$30:$D$55,2,0)*((1+Infla)^E$108)*$C76/1000 -> 0 | F115: 0 | G115: 0 | H115: 0 | I115: 0 | J115: 0 | K115: -5000 | L115: -1000 | M115: -250 | N115: -250 | O115: -250 | P115: -250 | Q115: -2500 | R115: -1000 | S115: -250 | T115: -250 | U115: -250 | V115: -250 | W115: -4000 | X115: -1000 | Y115: -250 | Z115: -250 | AA115: -250 | AB115: -250 | AC115: 0 | AD115: 0
D116: Tlh07 | E116: =VLOOKUP(E77,$B$30:$D$55,3,0)*VLOOKUP(E77,$B$30:$D$55,2,0)*((1+Infla)^E$108)*$C77/1000 -> 0 | F116: -5000 | G116: -1000 | H116: -250 | I116: -250 | J116: -250 | K116: -250 | L116: -2500 | M116: -1000 | N116: -250 | O116: -250 | P116: -250 | Q116: -250 | R116: -4000 | S116: -1000 | T116: -250 | U116: -250 | V116: -250 | W116: -250 | X116: 0 | Y116: 0 | Z116: 0 | AA116: 0 | AB116: 0 | AC116: 0 | AD116: 0
D117: Tlh08 | E117: =VLOOKUP(E78,$B$30:$D$55,3,0)*VLOOKUP(E78,$B$30:$D$55,2,0)*((1+Infla)^E$108)*$C78/1000 -> 0 | F117: 0 | G117: -5000 | H117: -1000 | I117: -250 | J117: -250 | K117: -250 | L117: -250 | M117: -2500 | N117: -1000 | O117: -250 | P117: -250 | Q117: -250 | R117: -250 | S117: -4000 | T117: -1000 | U117: -250 | V117: -250 | W117: -250 | X117: -250 | Y117: 0 | Z117: 0 | AA117: 0 | AB117: 0 | AC117: 0 | AD117: 0
D118: Tlh09 | E118: =VLOOKUP(E79,$B$30:$D$55,3,0)*VLOOKUP(E79,$B$30:$D$55,2,0)*((1+Infla)^E$108)*$C79/1000 -> 0 | F118: 0 | G118: 0 | H118: -5000 | I118: -1000 | J118: -250 | K118: -250 | L118: -250 | M118: -250 | N118: -2500 | O118: -1000 | P118: -250 | Q118: -250 | R118: -250 | S118: -250 | T118: -4000 | U118: -1000 | V118: -250 | W118: -250 | X118: -250 | Y118: -250 | Z118: 0 | AA118: 0 | AB118: 0 | AC118: 0 | AD118: 0
D119: Tlh10 | E119: =VLOOKUP(E80,$B$30:$D$55,3,0)*VLOOKUP(E80,$B$30:$D$55,2,0)*((1+Infla)^E$108)*$C80/1000 -> 0 | F119: 0 | G119: 0 | H119: 0 | I119: -5000 | J119: -1000 | K119: -250 | L119: -250 | M119: -250 | N119: -250 | O119: -2500 | P119: -1000 | Q119: -250 | R119: -250 | S119: -250 | T119: -250 | U119: -4000 | V119: -1000 | W119: -250 | X119: -250 | Y119: -250 | Z119: -250 | AA119: 0 | AB119: 0 | AC119: 0 | AD119: 0
D120: Tlh11 | E120: =VLOOKUP(E81,$B$30:$D$55,3,0)*VLOOKUP(E81,$B$30:$D$55,2,0)*((1+Infla)^E$108)*$C81/1000 -> 0 | F120: 0 | G120: 0 | H120: 0 | I120: 0 | J120: -5000 | K120: -1000 | L120: -250 | M120: -250 | N120: -250 | O120: -250 | P120: -2500 | Q120: -1000 | R120: -250 | S120: -250 | T120: -250 | U120: -250 | V120: -4000 | W120: -1000 | X120: -250 | Y120: -250 | Z120: -250 | AA120: -250 | AB120: 0 | AC120: 0 | AD120: 0
D121: Tlh12 | E121: =VLOOKUP(E82,$B$30:$D$55,3,0)*VLOOKUP(E82,$B$30:$D$55,2,0)*((1+Infla)^E$108)*$C82/1000 -> 0 | F121: 0 | G121: 0 | H121: 0 | I121: 0 | J121: 0 | K121: -5000 | L121: -1000 | M121: -250 | N121: -250 | O121: -250 | P121: -250 | Q121: -2500 | R121: -1000 | S121: -250 | T121: -250 | U121: -250 | V121: -250 | W121: -4000 | X121: -1000 | Y121: -250 | Z121: -250 | AA121: -250 | AB121: -250 | AC121: 0 | AD121: 0
D122: Tlh13 | E122: =VLOOKUP(E83,$B$30:$D$55,3,0)*VLOOKUP(E83,$B$30:$D$55,2,0)*((1+Infla)^E$108)*$C83/1000 -> 0 | F122: 0 | G122: 0 | H122: 0 | I122: 0 | J122: 0 | K122: 0 | L122: 0 | M122: 0 | N122: 0 | O122: 0 | P122: 0 | Q122: 0 | R122: 0 | S122: 0 | T122: 0 | U122: 0 | V122: 0 | W122: 0 | X122: 0 | Y122: 0 | Z122: 0 | AA122: 0 | AB122: 0 | AC122: 0 | AD122: 0
D123: Tlh14 | E123: =VLOOKUP(E84,$B$30:$D$55,3,0)*VLOOKUP(E84,$B$30:$D$55,2,0)*((1+Infla)^E$108)*$C84/1000 -> 0 | F123: 0 | G123: 0 | H123: 0 | I123: 0 | J123: 0 | K123: 0 | L123: 0 | M123: 0 | N123: 0 | O123: 0 | P123: 0 | Q123: 0 | R123: 0 | S123: 0 | T123: 0 | U123: 0 | V123: 0 | W123: 0 | X123: 0 | Y123: 0 | Z123: 0 | AA123: 0 | AB123: 0 | AC123: 0 | AD123: 0
B124: Custos | D124: Valor Presente
B125: operacionais até colheita: | C125: =SUM(E125:AD125) -> -210000 | D125: =NPV(TxNom,E125:AD125) -> -127914.007 | E125: =SUM(E110:E123) -> 0 | F125: =SUM(F110:F123) -> -10000 | G125: -12000 | H125: -12500 | I125: -13000 | J125: -13500 | K125: -14000 | L125: -9000 | M125: -9000 | N125: -9000 | O125: -9000 | P125: -9000 | Q125: -9000 | R125: -12000 | S125: -12000 | T125: -12000 | U125: -12000 | V125: -12000 | W125: -12000 | X125: -4000 | Y125: -2000 | Z125: -1500 | AA125: -1000 | AB125: -500 | AC125: 0 | AD125: 0
B126: de colheita: | C126: =SUM(E126:AD126) -> -462806.4 | D126: =NPV(TxNom,E126:AD126) -> -215433.1471 | E126: =SUM(E149,E164,E179,E194)*$I$33*((1+Infla)^E$108)/1000 -> 0 | F126: 0 | G126: 0 | H126: 0 | I126: 0 | J126: 0 | K126: 0 | L126: -26514.95 | M126: -26514.95 | N126: -26514.95 | O126: -26514.95 | P126: -26514.95 | Q126: -26514.95 | R126: -26514.95 | S126: -26514.95 | T126: -26514.95 | U126: -26514.95 | V126: -26514.95 | W126: -26514.95 | X126: -24104.5 | Y126: -24104.5 | Z126: -24104.5 | AA126: -24104.5 | AB126: -24104.5 | AC126: -24104.5 | AD126: 0
B127: de frete: | C127: =SUM(E127:AD127) -> -208262.88 | D127: =NPV(TxNom,E127:AD127) -> -96944.91622 | E127: =SUM(E$149,E$164,E179,E194)*SUMPRODUCT($I$37:$I$39,$J$37:$J$39)*((1+Infla)^E$108)/1000 -> 0 | F127: 0 | G127: 0 | H127: 0 | I127: 0 | J127: 0 | K127: 0 | L127: -11931.7275 | M127: -11931.7275 | N127: -11931.7275 | O127: -11931.7275 | P127: -11931.7275 | Q127: -11931.7275 | R127: -11931.7275 | S127: -11931.7275 | T127: -11931.7275 | U127: -11931.7275 | V127: -11931.7275 | W127: -11931.7275 | X127: -10847.025 | Y127: -10847.025 | Z127: -10847.025 | AA127: -10847.025 | AB127: -10847.025 | AC127: -10847.025 | AD127: 0
B128: Total | C128: =SUM(E128:AD128) -> -881069.28 | D128: =NPV(TxNom,E128:AD128) -> -440292.0704 | E128: =SUM(E125:E127) -> 0 | F128: =SUM(F125:F127) -> -10000 | G128: -12000 | H128: -12500 | I128: -13000 | J128: -13500 | K128: -14000 | L128: -47446.6775 | M128: -47446.6775 | N128: -47446.6775 | O128: -47446.6775 | P128: -47446.6775 | Q128: -47446.6775 | R128: -50446.6775 | S128: -50446.6775 | T128: -50446.6775 | U128: -50446.6775 | V128: -50446.6775 | W128: -50446.6775 | X128: -38951.525 | Y128: -36951.525 | Z128: -36451.525 | AA128: -35951.525 | AB128: -35451.525 | AC128: -34951.525 | AD128: 0
B130: Fluxo de produção (m3)
E132: =E$68 -> 1 | F132: 2 | G132: 3 | H132: 4 | I132: 5 | J132: 6 | K132: 7 | L132: 8 | M132: 9 | N132: 10 | O132: 11 | P132: 12 | Q132: 13 | R132: 14 | S132: 15 | T132: 16 | U132: 17 | V132: 18 | W132: 19 | X132: 20 | Y132: 21 | Z132: 22 | AA132: 23 | AB132: 24 | AC132: 25 | AD132: 26
E133: =E$69 -> 2024 | F133: 2025 | G133: 2026 | H133: 2027 | I133: 2028 | J133: 2029 | K133: 2030 | L133: 2031 | M133: 2032 | N133: 2033 | O133: 2034 | P133: 2035 | Q133: 2036 | R133: 2037 | S133: 2038 | T133: 2039 | U133: 2040 | V133: 2041 | W133: 2042 | X133: 2043 | Y133: 2044 | Z133: 2045 | AA133: 2046 | AB133: 2047 | AC133: 2048 | AD133: 2049
C134: Produto | D134: Gleba
B135: Volume colhido (m3) de | C135: =IF(D71="","",$B$9) -> CEL | D135: =IF(D71="","",D71) -> Tlh01 | E135: =IFERROR(VLOOKUP(E71,$B$16:$L$27,3+MATCH($C135,$E$15:$L$15,0),0)*$C71*E$85,0) -> 0 | F135: 0 | G135: 0 | H135: 0 | I135: 0 | J135: 0 | K135: 0 | L135: 265149.5 | M135: 0 | N135: 0 | O135: 0 | P135: 0 | Q135: 0 | R135: 265149.5 | S135: 0 | T135: 0 | U135: 0 | V135: 0 | W135: 0 | X135: 241045 | Y135: 0 | Z135: 0 | AA135: 0 | AB135: 0 | AC135: 0 | AD135: 0
C136: CEL | D136: Tlh02 | E136: =IFERROR(VLOOKUP(E72,$B$16:$L$27,3+MATCH($C136,$E$15:$L$15,0),0)*$C72*E$85,0) -> 0 | F136: 0 | G136: 0 | H136: 0 | I136: 0 | J136: 0 | K136: 0 | L136: 0 | M136: 265149.5 | N136: 0 | O136: 0 | P136: 0 | Q136: 0 | R136: 0 | S136: 265149.5 | T136: 0 | U136: 0 | V136: 0 | W136: 0 | X136: 0 | Y136: 241045 | Z136: 0 | AA136: 0 | AB136: 0 | AC136: 0 | AD136: 0
C137: CEL | D137: Tlh03 | E137: =IFERROR(VLOOKUP(E73,$B$16:$L$27,3+MATCH($C137,$E$15:$L$15,0),0)*$C73*E$85,0) -> 0 | F137: 0 | G137: 0 | H137: 0 | I137: 0 | J137: 0 | K137: 0 | L137: 0 | M137: 0 | N137: 265149.5 | O137: 0 | P137: 0 | Q137: 0 | R137: 0 | S137: 0 | T137: 265149.5 | U137: 0 | V137: 0 | W137: 0 | X137: 0 | Y137: 0 | Z137: 241045 | AA137: 0 | AB137: 0 | AC137: 0 | AD137: 0
C138: CEL | D138: Tlh04 | E138: =IFERROR(VLOOKUP(E74,$B$16:$L$27,3+MATCH($C138,$E$15:$L$15,0),0)*$C74*E$85,0) -> 0 | F138: 0 | G138: 0 | H138: 0 | I138: 0 | J138: 0 | K138: 0 | L138: 0 | M138: 0 | N138: 0 | O138: 265149.5 | P138: 0 | Q138: 0 | R138: 0 | S138: 0 | T138: 0 | U138: 265149.5 | V138: 0 | W138: 0 | X138: 0 | Y138: 0 | Z138: 0 | AA138: 241045 | AB138: 0 | AC138: 0 | AD138: 0
C139: CEL | D139: Tlh05 | E139: =IFERROR(VLOOKUP(E75,$B$16:$L$27,3+MATCH($C139,$E$15:$L$15,0),0)*$C75*E$85,0) -> 0 | F139: 0 | G139: 0 | H139: 0 | I139: 0 | J139: 0 | K139: 0 | L139: 0 | M139: 0 | N139: 0 | O139: 0 | P139: 265149.5 | Q139: 0 | R139: 0 | S139: 0 | T139: 0 | U139: 0 | V139: 265149.5 | W139: 0 | X139: 0 | Y139: 0 | Z139: 0 | AA139: 0 | AB139: 241045 | AC139: 0 | AD139: 0
C140: CEL | D140: Tlh06 | E140: =IFERROR(VLOOKUP(E76,$B$16:$L$27,3+MATCH($C140,$E$15:$L$15,0),0)*$C76*E$85,0) -> 0 | F140: 0 | G140: 0 | H140: 0 | I140: 0 | J140: 0 | K140: 0 | L140: 0 | M140: 0 | N140: 0 | O140: 0 | P140: 0 | Q140: 265149.5 | R140: 0 | S140: 0 | T140: 0 | U140: 0 | V140: 0 | W140: 265149.5 | X140: 0 | Y140: 0 | Z140: 0 | AA140: 0 | AB140: 0 | AC140: 241045 | AD140: 0
C141: CEL | D141: Tlh07 | E141: =IFERROR(VLOOKUP(E77,$B$16:$L$27,3+MATCH($C141,$E$15:$L$15,0),0)*$C77*E$85,0) -> 0 | F141: 0 | G141: 0 | H141: 0 | I141: 0 | J141: 0 | K141: 0 | L141: 265149.5 | M141: 0 | N141: 0 | O141: 0 | P141: 0 | Q141: 0 | R141: 265149.5 | S141: 0 | T141: 0 | U141: 0 | V141: 0 | W141: 0 | X141: 241045 | Y141: 0 | Z141: 0 | AA141: 0 | AB141: 0 | AC141: 0 | AD141: 0
C142: CEL | D142: Tlh08 | E142: =IFERROR(VLOOKUP(E78,$B$16:$L$27,3+MATCH($C142,$E$15:$L$15,0),0)*$C78*E$85,0) -> 0 | F142: 0 | G142: 0 | H142: 0 | I142: 0 | J142: 0 | K142: 0 | L142: 0 | M142: 265149.5 | N142: 0 | O142: 0 | P142: 0 | Q142: 0 | R142: 0 | S142: 265149.5 | T142: 0 | U142: 0 | V142: 0 | W142: 0 | X142: 0 | Y142: 241045 | Z142: 0 | AA142: 0 | AB142: 0 | AC142: 0 | AD142: 0
C143: CEL | D143: Tlh09 | E143: =IFERROR(VLOOKUP(E79,$B$16:$L$27,3+MATCH($C143,$E$15:$L$15,0),0)*$C79*E$85,0) -> 0 | F143: 0 | G143: 0 | H143: 0 | I143: 0 | J143: 0 | K143: 0 | L143: 0 | M143: 0 | N143: 265149.5 | O143: 0 | P143: 0 | Q143: 0 | R143: 0 | S143: 0 | T143: 265149.5 | U143: 0 | V143: 0 | W143: 0 | X143: 0 | Y143: 0 | Z143: 241045 | AA143: 0 | AB143: 0 | AC143: 0 | AD143: 0
C144: CEL | D144: Tlh10 | E144: =IFERROR(VLOOKUP(E80,$B$16:$L$27,3+MATCH($C144,$E$15:$L$15,0),0)*$C80*E$85,0) -> 0 | F144: 0 | G144: 0 | H144: 0 | I144: 0 | J144: 0 | K144: 0 | L144: 0 | M144: 0 | N144: 0 | O144: 265149.5 | P144: 0 | Q144: 0 | R144: 0 | S144: 0 | T144: 0 | U144: 265149.5 | V144: 0 | W144: 0 | X144: 0 | Y144: 0 | Z144: 0 | AA144: 241045 | AB144: 0 | AC144: 0 | AD144: 0
C145: CEL | D145: Tlh11 | E145: =IFERROR(VLOOKUP(E81,$B$16:$L$27,3+MATCH($C145,$E$15:$L$15,0),0)*$C81*E$85,0) -> 0 | F145: 0 | G145: 0 | H145: 0 | I145: 0 | J145: 0 | K145: 0 | L145: 0 | M145: 0 | N145: 0 | O145: 0 | P145: 265149.5 | Q145: 0 | R145: 0 | S145: 0 | T145: 0 | U145: 0 | V145: 265149.5 | W145: 0 | X145: 0 | Y145: 0 | Z145: 0 | AA145: 0 | AB145: 241045 | AC145: 0 | AD145: 0
C146: CEL | D146: Tlh12 | E146: =IFERROR(VLOOKUP(E82,$B$16:$L$27,3+MATCH($C146,$E$15:$L$15,0),0)*$C82*E$85,0) -> 0 | F146: 0 | G146: 0 | H146: 0 | I146: 0 | J146: 0 | K146: 0 | L146: 0 | M146: 0 | N146: 0 | O146: 0 | P146: 0 | Q146: 265149.5 | R146: 0 | S146: 0 | T146: 0 | U146: 0 | V146: 0 | W146: 265149.5 | X146: 0 | Y146: 0 | Z146: 0 | AA146: 0 | AB146: 0 | AC146: 241045 | AD146: 0
E147: =IFERROR(VLOOKUP(E83,$B$16:$L$27,3+MATCH($C147,$E$15:$L$15,0),0)*$C83*E$85,0) -> 0 | F147: 0 | G147: 0 | H147: 0 | I147: 0 | J147: 0 | K147: 0 | L147: 0 | M147: 0 | N147: 0 | O147: 0 | P147: 0 | Q147: 0 | R147: 0 | S147: 0 | T147: 0 | U147: 0 | V147: 0 | W147: 0 | X147: 0 | Y147: 0 | Z147: 0 | AA147: 0 | AB147: 0 | AC147: 0 | AD147: 0
E148: =IFERROR(VLOOKUP(E84,$B$16:$L$27,3+MATCH($C148,$E$15:$L$15,0),0)*$C84*E$85,0) -> 0 | F148: 0 | G148: 0 | H148: 0 | I148: 0 | J148: 0 | K148: 0 | L148: 0 | M148: 0 | N148: 0 | O148: 0 | P148: 0 | Q148: 0 | R148: 0 | S148: 0 | T148: 0 | U148: 0 | V148: 0 | W148: 0 | X148: 0 | Y148: 0 | Z148: 0 | AA148: 0 | AB148: 0 | AC148: 0 | AD148: 0
B149: ="Total de " -> Total de | C149: =C135 -> CEL | D149: =SUM(E149:AD149) -> 9256128 | E149: =SUM(E135:E148) -> 0 | F149: =SUM(F135:F148) -> 0 | G149: 0 | H149: 0 | I149: 0 | J149: 0 | K149: 0 | L149: 530299 | M149: 530299 | N149: 530299 | O149: 530299 | P149: =SUM(P135:P148) -> 530299 | Q149: 530299 | R149: 530299 | S149: 530299 | T149: 530299 | U149: 530299 | V149: 530299 | W149: 530299 | X149: 482090 | Y149: 482090 | Z149: 482090 | AA149: 482090 | AB149: 482090 | AC149: 482090 | AD149: 0
B150: Volume colhido (m3) de | C150: =IF(D71="","",$B$10) -> BIO | D150: =IF(D71="","",D71) -> Tlh01 | E150: =IFERROR(VLOOKUP(E71,$B$16:$L$27,3+MATCH($C150,$E$15:$L$15,0),0)*$C71*E$85,0) -> 0 | F150: 0 | G150: 0 | H150: 0 | I150: 0 | J150: 0 | K150: 0 | L150: 0 | M150: 0 | N150: 0 | O150: 0 | P150: 0 | Q150: 0 | R150: 0 | S150: 0 | T150: 0 | U150: 0 | V150: 0 | W150: 0 | X150: 0 | Y150: 0 | Z150: 0 | AA150: 0 | AB150: 0 | AC150: 0 | AD150: 0
C151: BIO | D151: Tlh02 | E151: =IFERROR(VLOOKUP(E72,$B$16:$L$27,3+MATCH($C151,$E$15:$L$15,0),0)*$C72*E$85,0) -> 0 | F151: 0 | G151: 0 | H151: 0 | I151: 0 | J151: 0 | K151: 0 | L151: 0 | M151: 0 | N151: 0 | O151: 0 | P151: 0 | Q151: 0 | R151: 0 | S151: 0 | T151: 0 | U151: 0 | V151: 0 | W151: 0 | X151: 0 | Y151: 0 | Z151: 0 | AA151: 0 | AB151: 0 | AC151: 0 | AD151: 0
C152: BIO | D152: Tlh03 | E152: =IFERROR(VLOOKUP(E73,$B$16:$L$27,3+MATCH($C152,$E$15:$L$15,0),0)*$C73*E$85,0) -> 0 | F152: 0 | G152: 0 | H152: 0 | I152: 0 | J152: 0 | K152: 0 | L152: 0 | M152: 0 | N152: 0 | O152: 0 | P152: 0 | Q152: 0 | R152: 0 | S152: 0 | T152: 0 | U152: 0 | V152: 0 | W152: 0 | X152: 0 | Y152: 0 | Z152: 0 | AA152: 0 | AB152: 0 | AC152: 0 | AD152: 0
C153: BIO | D153: Tlh04 | E153: =IFERROR(VLOOKUP(E74,$B$16:$L$27,3+MATCH($C153,$E$15:$L$15,0),0)*$C74*E$85,0) -> 0 | F153: 0 | G153: 0 | H153: 0 | I153: 0 | J153: 0 | K153: 0 | L153: 0 | M153: 0 | N153: 0 | O153: 0 | P153: 0 | Q153: 0 | R153: 0 | S153: 0 | T153: 0 | U153: 0 | V153: 0 | W153: 0 | X153: 0 | Y153: 0 | Z153: 0 | AA153: 0 | AB153: 0 | AC153: 0 | AD153: 0
C154: BIO | D154: Tlh05 | E154: =IFERROR(VLOOKUP(E75,$B$16:$L$27,3+MATCH($C154,$E$15:$L$15,0),0)*$C75*E$85,0) -> 0 | F154: 0 | G154: 0 | H154: 0 | I154: 0 | J154: 0 | K154: 0 | L154: 0 | M154: 0 | N154: 0 | O154: 0 | P154: 0 | Q154: 0 | R154: 0 | S154: 0 | T154: 0 | U154: 0 | V154: 0 | W154: 0 | X154: 0 | Y154: 0 | Z154: 0 | AA154: 0 | AB154: 0 | AC154: 0 | AD154: 0
C155: BIO | D155: Tlh06 | E155: =IFERROR(VLOOKUP(E76,$B$16:$L$27,3+MATCH($C155,$E$15:$L$15,0),0)*$C76*E$85,0) -> 0 | F155: 0 | G155: 0 | H155: 0 | I155: 0 | J155: 0 | K155: 0 | L155: 0 | M155: 0 | N155: 0 | O155: 0 | P155: 0 | Q155: 0 | R155: 0 | S155: 0 | T155: 0 | U155: 0 | V155: 0 | W155: 0 | X155: 0 | Y155: 0 | Z155: 0 | AA155: 0 | AB155: 0 | AC155: 0 | AD155: 0
C156: BIO | D156: Tlh07 | E156: =IFERROR(VLOOKUP(E77,$B$16:$L$27,3+MATCH($C156,$E$15:$L$15,0),0)*$C77*E$85,0) -> 0 | F156: 0 | G156: 0 | H156: 0 | I156: 0 | J156: 0 | K156: 0 | L156: 0 | M156: 0 | N156: 0 | O156: 0 | P156: 0 | Q156: 0 | R156: 0 | S156: 0 | T156: 0 | U156: 0 | V156: 0 | W156: 0 | X156: 0 | Y156: 0 | Z156: 0 | AA156: 0 | AB156: 0 | AC156: 0 | AD156: 0
C157: BIO | D157: Tlh08 | E157: =IFERROR(VLOOKUP(E78,$B$16:$L$27,3+MATCH($C157,$E$15:$L$15,0),0)*$C78*E$85,0) -> 0 | F157: 0 | G157: 0 | H157: 0 | I157: 0 | J157: 0 | K157: 0 | L157: 0 | M157: 0 | N157: 0 | O157: 0 | P157: 0 | Q157: 0 | R157: 0 | S157: 0 | T157: 0 | U157: 0 | V157: 0 | W157: 0 | X157: 0 | Y157: 0 | Z157: 0 | AA157: 0 | AB157: 0 | AC157: 0 | AD157: 0
C158: BIO | D158: Tlh09 | E158: =IFERROR(VLOOKUP(E79,$B$16:$L$27,3+MATCH($C158,$E$15:$L$15,0),0)*$C79*E$85,0) -> 0 | F158: 0 | G158: 0 | H158: 0 | I158: 0 | J158: 0 | K158: 0 | L158: 0 | M158: 0 | N158: 0 | O158: 0 | P158: 0 | Q158: 0 | R158: 0 | S158: 0 | T158: 0 | U158: 0 | V158: 0 | W158: 0 | X158: 0 | Y158: 0 | Z158: 0 | AA158: 0 | AB158: 0 | AC158: 0 | AD158: 0
C159: BIO | D159: Tlh10 | E159: =IFERROR(VLOOKUP(E80,$B$16:$L$27,3+MATCH($C159,$E$15:$L$15,0),0)*$C80*E$85,0) -> 0 | F159: 0 | G159: 0 | H159: 0 | I159: 0 | J159: 0 | K159: 0 | L159: 0 | M159: 0 | N159: 0 | O159: 0 | P159: 0 | Q159: 0 | R159: 0 | S159: 0 | T159: 0 | U159: 0 | V159: 0 | W159: 0 | X159: 0 | Y159: 0 | Z159: 0 | AA159: 0 | AB159: 0 | AC159: 0 | AD159: 0
C160: BIO | D160: Tlh11 | E160: =IFERROR(VLOOKUP(E81,$B$16:$L$27,3+MATCH($C160,$E$15:$L$15,0),0)*$C81*E$85,0) -> 0 | F160: 0 | G160: 0 | H160: 0 | I160: 0 | J160: 0 | K160: 0 | L160: 0 | M160: 0 | N160: 0 | O160: 0 | P160: 0 | Q160: 0 | R160: 0 | S160: 0 | T160: 0 | U160: 0 | V160: 0 | W160: 0 | X160: 0 | Y160: 0 | Z160: 0 | AA160: 0 | AB160: 0 | AC160: 0 | AD160: 0
C161: BIO | D161: Tlh12 | E161: =IFERROR(VLOOKUP(E82,$B$16:$L$27,3+MATCH($C161,$E$15:$L$15,0),0)*$C82*E$85,0) -> 0 | F161: 0 | G161: 0 | H161: 0 | I161: 0 | J161: 0 | K161: 0 | L161: 0 | M161: 0 | N161: 0 | O161: 0 | P161: 0 | Q161: 0 | R161: 0 | S161: 0 | T161: 0 | U161: 0 | V161: 0 | W161: 0 | X161: 0 | Y161: 0 | Z161: 0 | AA161: 0 | AB161: 0 | AC161: 0 | AD161: 0
E162: =IFERROR(VLOOKUP(E83,$B$16:$L$27,3+MATCH($C162,$E$15:$L$15,0),0)*$C83*E$85,0) -> 0 | F162: 0 | G162: 0 | H162: 0 | I162: 0 | J162: 0 | K162: 0 | L162: 0 | M162: 0 | N162: 0 | O162: 0 | P162: 0 | Q162: 0 | R162: 0 | S162: 0 | T162: 0 | U162: 0 | V162: 0 | W162: 0 | X162: 0 | Y162: 0 | Z162: 0 | AA162: 0 | AB162: 0 | AC162: 0 | AD162: 0
E163: =IFERROR(VLOOKUP(E84,$B$16:$L$27,3+MATCH($C163,$E$15:$L$15,0),0)*$C84*E$85,0) -> 0 | F163: 0 | G163: 0 | H163: 0 | I163: 0 | J163: 0 | K163: 0 | L163: 0 | M163: 0 | N163: 0 | O163: 0 | P163: 0 | Q163: 0 | R163: 0 | S163: 0 | T163: 0 | U163: 0 | V163: 0 | W163: 0 | X163: 0 | Y163: 0 | Z163: 0 | AA163: 0 | AB163: 0 | AC163: 0 | AD163: 0
B164: ="Total de " -> Total de | C164: =C150 -> BIO | D164: =SUM(E164:AD164) -> 0 | E164: =SUM(E150:E163) -> 0 | F164: =SUM(F150:F163) -> 0 | G164: 0 | H164: 0 | I164: 0 | J164: 0 | K164: 0 | L164: 0 | M164: 0 | N164: 0 | O164: 0 | P164: 0 | Q164: 0 | R164: 0 | S164: 0 | T164: 0 | U164: 0 | V164: 0 | W164: 0 | X164: 0 | Y164: 0 | Z164: 0 | AA164: 0 | AB164: 0 | AC164: 0 | AD164: =SUM(AD150:AD163) -> 0
B165: Volume colhido (m3) de | C165: =IF(D71="","",$B$11) -> XX1 | D165: =IF(D71="","",D71) -> Tlh01 | E165: =IFERROR(VLOOKUP(E71,$B$16:$L$27,3+MATCH($C165,$E$15:$L$15,0),0)*$C71*E$85,0) -> 0 | F165: 0 | G165: 0 | H165: 0 | I165: 0 | J165: 0 | K165: 0 | L165: 0 | M165: 0 | N165: 0 | O165: 0 | P165: 0 | Q165: 0 | R165: 0 | S165: 0 | T165: 0 | U165: 0 | V165: 0 | W165: 0 | X165: 0 | Y165: 0 | Z165: 0 | AA165: 0 | AB165: 0 | AC165: 0 | AD165: 0
C166: XX1 | D166: Tlh02 | E166: =IFERROR(VLOOKUP(E72,$B$16:$L$27,3+MATCH($C166,$E$15:$L$15,0),0)*$C72*E$85,0) -> 0 | F166: 0 | G166: 0 | H166: 0 | I166: 0 | J166: 0 | K166: 0 | L166: 0 | M166: 0 | N166: 0 | O166: 0 | P166: 0 | Q166: 0 | R166: 0 | S166: 0 | T166: 0 | U166: 0 | V166: 0 | W166: 0 | X166: 0 | Y166: 0 | Z166: 0 | AA166: 0 | AB166: 0 | AC166: 0 | AD166: 0
C167: XX1 | D167: Tlh03 | E167: =IFERROR(VLOOKUP(E73,$B$16:$L$27,3+MATCH($C167,$E$15:$L$15,0),0)*$C73*E$85,0) -> 0 | F167: 0 | G167: 0 | H167: 0 | I167: 0 | J167: 0 | K167: 0 | L167: 0 | M167: 0 | N167: 0 | O167: 0 | P167: 0 | Q167: 0 | R167: 0 | S167: 0 | T167: 0 | U167: 0 | V167: 0 | W167: 0 | X167: 0 | Y167: 0 | Z167: 0 | AA167: 0 | AB167: 0 | AC167: 0 | AD167: 0
C168: XX1 | D168: Tlh04 | E168: =IFERROR(VLOOKUP(E74,$B$16:$L$27,3+MATCH($C168,$E$15:$L$15,0),0)*$C74*E$85,0) -> 0 | F168: 0 | G168: 0 | H168: 0 | I168: 0 | J168: 0 | K168: 0 | L168: 0 | M168: 0 | N168: 0 | O168: 0 | P168: 0 | Q168: 0 | R168: 0 | S168: 0 | T168: 0 | U168: 0 | V168: 0 | W168: 0 | X168: 0 | Y168: 0 | Z168: 0 | AA168: 0 | AB168: 0 | AC168: 0 | AD168: 0
C169: XX1 | D169: Tlh05 | E169: =IFERROR(VLOOKUP(E75,$B$16:$L$27,3+MATCH($C169,$E$15:$L$15,0),0)*$C75*E$85,0) -> 0 | F169: 0 | G169: 0 | H169: 0 | I169: 0 | J169: 0 | K169: 0 | L169: 0 | M169: 0 | N169: 0 | O169: 0 | P169: 0 | Q169: 0 | R169: 0 | S169: 0 | T169: 0 | U169: 0 | V169: 0 | W169: 0 | X169: 0 | Y169: 0 | Z169: 0 | AA169: 0 | AB169: 0 | AC169: 0 | AD169: 0
C170: XX1 | D170: Tlh06 | E170: =IFERROR(VLOOKUP(E76,$B$16:$L$27,3+MATCH($C170,$E$15:$L$15,0),0)*$C76*E$85,0) -> 0 | F170: 0 | G170: 0 | H170: 0 | I170: 0 | J170: 0 | K170: 0 | L170: 0 | M170: 0 | N170: 0 | O170: 0 | P170: 0 | Q170: 0 | R170: 0 | S170: 0 | T170: 0 | U170: 0 | V170: 0 | W170: 0 | X170: 0 | Y170: 0 | Z170: 0 | AA170: 0 | AB170: 0 | AC170: 0 | AD170: 0
C171: XX1 | D171: Tlh07 | E171: =IFERROR(VLOOKUP(E77,$B$16:$L$27,3+MATCH($C171,$E$15:$L$15,0),0)*$C77*E$85,0) -> 0 | F171: 0 | G171: 0 | H171: 0 | I171: 0 | J171: 0 | K171: 0 | L171: 0 | M171: 0 | N171: 0 | O171: 0 | P171: 0 | Q171: 0 | R171: 0 | S171: 0 | T171: 0 | U171: 0 | V171: 0 | W171: 0 | X171: 0 | Y171: 0 | Z171: 0 | AA171: 0 | AB171: 0 | AC171: 0 | AD171: 0
C172: XX1 | D172: Tlh08 | E172: =IFERROR(VLOOKUP(E78,$B$16:$L$27,3+MATCH($C172,$E$15:$L$15,0),0)*$C78*E$85,0) -> 0 | F172: 0 | G172: 0 | H172: 0 | I172: 0 | J172: 0 | K172: 0 | L172: 0 | M172: 0 | N172: 0 | O172: 0 | P172: 0 | Q172: 0 | R172: 0 | S172: 0 | T172: 0 | U172: 0 | V172: 0 | W172: 0 | X172: 0 | Y172: 0 | Z172: 0 | AA172: 0 | AB172: 0 | AC172: 0 | AD172: 0
C173: XX1 | D173: Tlh09 | E173: =IFERROR(VLOOKUP(E79,$B$16:$L$27,3+MATCH($C173,$E$15:$L$15,0),0)*$C79*E$85,0) -> 0 | F173: 0 | G173: 0 | H173: 0 | I173: 0 | J173: 0 | K173: 0 | L173: 0 | M173: 0 | N173: 0 | O173: 0 | P173: 0 | Q173: 0 | R173: 0 | S173: 0 | T173: 0 | U173: 0 | V173: 0 | W173: 0 | X173: 0 | Y173: 0 | Z173: 0 | AA173: 0 | AB173: 0 | AC173: 0 | AD173: 0
C174: XX1 | D174: Tlh10 | E174: =IFERROR(VLOOKUP(E80,$B$16:$L$27,3+MATCH($C174,$E$15:$L$15,0),0)*$C80*E$85,0) -> 0 | F174: 0 | G174: 0 | H174: 0 | I174: 0 | J174: 0 | K174: 0 | L174: 0 | M174: 0 | N174: 0 | O174: 0 | P174: 0 | Q174: 0 | R174: 0 | S174: 0 | T174: 0 | U174: 0 | V174: 0 | W174: 0 | X174: 0 | Y174: 0 | Z174: 0 | AA174: 0 | AB174: 0 | AC174: 0 | AD174: 0
C175: XX1 | D175: Tlh11 | E175: =IFERROR(VLOOKUP(E81,$B$16:$L$27,3+MATCH($C175,$E$15:$L$15,0),0)*$C81*E$85,0) -> 0 | F175: 0 | G175: 0 | H175: 0 | I175: 0 | J175: 0 | K175: 0 | L175: 0 | M175: 0 | N175: 0 | O175: 0 | P175: 0 | Q175: 0 | R175: 0 | S175: 0 | T175: 0 | U175: 0 | V175: 0 | W175: 0 | X175: 0 | Y175: 0 | Z175: 0 | AA175: 0 | AB175: 0 | AC175: 0 | AD175: 0
C176: XX1 | D176: Tlh12 | E176: =IFERROR(VLOOKUP(E82,$B$16:$L$27,3+MATCH($C176,$E$15:$L$15,0),0)*$C82*E$85,0) -> 0 | F176: 0 | G176: 0 | H176: 0 | I176: 0 | J176: 0 | K176: 0 | L176: 0 | M176: 0 | N176: 0 | O176: 0 | P176: 0 | Q176: 0 | R176: 0 | S176: 0 | T176: 0 | U176: 0 | V176: 0 | W176: 0 | X176: 0 | Y176: 0 | Z176: 0 | AA176: 0 | AB176: 0 | AC176: 0 | AD176: 0
E177: =IFERROR(VLOOKUP(E83,$B$16:$L$27,3+MATCH($C177,$E$15:$L$15,0),0)*$C83*E$85,0) -> 0 | F177: 0 | G177: 0 | H177: 0 | I177: 0 | J177: 0 | K177: 0 | L177: 0 | M177: 0 | N177: 0 | O177: 0 | P177: 0 | Q177: 0 | R177: 0 | S177: 0 | T177: 0 | U177: 0 | V177: 0 | W177: 0 | X177: 0 | Y177: 0 | Z177: 0 | AA177: 0 | AB177: 0 | AC177: 0 | AD177: 0
E178: =IFERROR(VLOOKUP(E84,$B$16:$L$27,3+MATCH($C178,$E$15:$L$15,0),0)*$C84*E$85,0) -> 0 | F178: 0 | G178: 0 | H178: 0 | I178: 0 | J178: 0 | K178: 0 | L178: 0 | M178: 0 | N178: 0 | O178: 0 | P178: 0 | Q178: 0 | R178: 0 | S178: 0 | T178: 0 | U178: 0 | V178: 0 | W178: 0 | X178: 0 | Y178: 0 | Z178: 0 | AA178: 0 | AB178: 0 | AC178: 0 | AD178: 0
B179: ="Total de " -> Total de | C179: =C165 -> XX1 | D179: =SUM(E179:AD179) -> 0 | E179: =SUM(E165:E178) -> 0 | F179: =SUM(F165:F178) -> 0 | G179: 0 | H179: 0 | I179: 0 | J179: 0 | K179: 0 | L179: 0 | M179: 0 | N179: 0 | O179: 0 | P179: 0 | Q179: 0 | R179: 0 | S179: 0 | T179: 0 | U179: 0 | V179: 0 | W179: 0 | X179: 0 | Y179: 0 | Z179: 0 | AA179: 0 | AB179: 0 | AC179: 0 | AD179: 0
B180: Volume colhido (m3) de | C180: =IF(D71="","",$B$12) -> XX2 | D180: =IF(D71="","",D71) -> Tlh01 | E180: =IFERROR(VLOOKUP(E71,$B$16:$L$27,3+MATCH($C180,$E$15:$L$15,0),0)*$C71*E$85,0) -> 0 | F180: 0 | G180: 0 | H180: 0 | I180: 0 | J180: 0 | K180: 0 | L180: 0 | M180: 0 | N180: 0 | O180: 0 | P180: 0 | Q180: 0 | R180: 0 | S180: 0 | T180: 0 | U180: 0 | V180: 0 | W180: 0 | X180: 0 | Y180: 0 | Z180: 0 | AA180: 0 | AB180: 0 | AC180: 0 | AD180: 0
C181: XX2 | D181: Tlh02 | E181: =IFERROR(VLOOKUP(E72,$B$16:$L$27,3+MATCH($C181,$E$15:$L$15,0),0)*$C72*E$85,0) -> 0 | F181: 0 | G181: 0 | H181: 0 | I181: 0 | J181: 0 | K181: 0 | L181: 0 | M181: 0 | N181: 0 | O181: 0 | P181: 0 | Q181: 0 | R181: 0 | S181: 0 | T181: 0 | U181: 0 | V181: 0 | W181: 0 | X181: 0 | Y181: 0 | Z181: 0 | AA181: 0 | AB181: 0 | AC181: 0 | AD181: 0
C182: XX2 | D182: Tlh03 | E182: =IFERROR(VLOOKUP(E73,$B$16:$L$27,3+MATCH($C182,$E$15:$L$15,0),0)*$C73*E$85,0) -> 0 | F182: 0 | G182: 0 | H182: 0 | I182: 0 | J182: 0 | K182: 0 | L182: 0 | M182: 0 | N182: 0 | O182: 0 | P182: 0 | Q182: 0 | R182: 0 | S182: 0 | T182: 0 | U182: 0 | V182: 0 | W182: 0 | X182: 0 | Y182: 0 | Z182: 0 | AA182: 0 | AB182: 0 | AC182: 0 | AD182: 0
C183: XX2 | D183: Tlh04 | E183: =IFERROR(VLOOKUP(E74,$B$16:$L$27,3+MATCH($C183,$E$15:$L$15,0),0)*$C74*E$85,0) -> 0 | F183: 0 | G183: 0 | H183: 0 | I183: 0 | J183: 0 | K183: 0 | L183: 0 | M183: 0 | N183: 0 | O183: 0 | P183: 0 | Q183: 0 | R183: 0 | S183: 0 | T183: 0 | U183: 0 | V183: 0 | W183: 0 | X183: 0 | Y183: 0 | Z183: 0 | AA183: 0 | AB183: 0 | AC183: 0 | AD183: 0
C184: XX2 | D184: Tlh05 | E184: =IFERROR(VLOOKUP(E75,$B$16:$L$27,3+MATCH($C184,$E$15:$L$15,0),0)*$C75*E$85,0) -> 0 | F184: 0 | G184: 0 | H184: 0 | I184: 0 | J184: 0 | K184: 0 | L184: 0 | M184: 0 | N184: 0 | O184: 0 | P184: 0 | Q184: 0 | R184: 0 | S184: 0 | T184: 0 | U184: 0 | V184: 0 | W184: 0 | X184: 0 | Y184: 0 | Z184: 0 | AA184: 0 | AB184: 0 | AC184: 0 | AD184: 0
C185: XX2 | D185: Tlh06 | E185: =IFERROR(VLOOKUP(E76,$B$16:$L$27,3+MATCH($C185,$E$15:$L$15,0),0)*$C76*E$85,0) -> 0 | F185: 0 | G185: 0 | H185: 0 | I185: 0 | J185: 0 | K185: 0 | L185: 0 | M185: 0 | N185: 0 | O185: 0 | P185: 0 | Q185: 0 | R185: 0 | S185: 0 | T185: 0 | U185: 0 | V185: 0 | W185: 0 | X185: 0 | Y185: 0 | Z185: 0 | AA185: 0 | AB185: 0 | AC185: 0 | AD185: 0
C186: XX2 | D186: Tlh07 | E186: =IFERROR(VLOOKUP(E77,$B$16:$L$27,3+MATCH($C186,$E$15:$L$15,0),0)*$C77*E$85,0) -> 0 | F186: 0 | G186: 0 | H186: 0 | I186: 0 | J186: 0 | K186: 0 | L186: 0 | M186: 0 | N186: 0 | O186: 0 | P186: 0 | Q186: 0 | R186: 0 | S186: 0 | T186: 0 | U186: 0 | V186: 0 | W186: 0 | X186: 0 | Y186: 0 | Z186: 0 | AA186: 0 | AB186: 0 | AC186: 0 | AD186: 0
C187: XX2 | D187: Tlh08 | E187: =IFERROR(VLOOKUP(E78,$B$16:$L$27,3+MATCH($C187,$E$15:$L$15,0),0)*$C78*E$85,0) -> 0 | F187: 0 | G187: 0 | H187: 0 | I187: 0 | J187: 0 | K187: 0 | L187: 0 | M187: 0 | N187: 0 | O187: 0 | P187: 0 | Q187: 0 | R187: 0 | S187: 0 | T187: 0 | U187: 0 | V187: 0 | W187: 0 | X187: 0 | Y187: 0 | Z187: 0 | AA187: 0 | AB187: 0 | AC187: 0 | AD187: 0
C188: XX2 | D188: Tlh09 | E188: =IFERROR(VLOOKUP(E79,$B$16:$L$27,3+MATCH($C188,$E$15:$L$15,0),0)*$C79*E$85,0) -> 0 | F188: 0 | G188: 0 | H188: 0 | I188: 0 | J188: 0 | K188: 0 | L188: 0 | M188: 0 | N188: 0 | O188: 0 | P188: 0 | Q188: 0 | R188: 0 | S188: 0 | T188: 0 | U188: 0 | V188: 0 | W188: 0 | X188: 0 | Y188: 0 | Z188: 0 | AA188: 0 | AB188: 0 | AC188: 0 | AD188: 0
C189: XX2 | D189: Tlh10 | E189: =IFERROR(VLOOKUP(E80,$B$16:$L$27,3+MATCH($C189,$E$15:$L$15,0),0)*$C80*E$85,0) -> 0 | F189: 0 | G189: 0 | H189: 0 | I189: 0 | J189: 0 | K189: 0 | L189: 0 | M189: 0 | N189: 0 | O189: 0 | P189: 0 | Q189: 0 | R189: 0 | S189: 0 | T189: 0 | U189: 0 | V189: 0 | W189: 0 | X189: 0 | Y189: 0 | Z189: 0 | AA189: 0 | AB189: 0 | AC189: 0 | AD189: 0
C190: XX2 | D190: Tlh11 | E190: =IFERROR(VLOOKUP(E81,$B$16:$L$27,3+MATCH($C190,$E$15:$L$15,0),0)*$C81*E$85,0) -> 0 | F190: 0 | G190: 0 | H190: 0 | I190: 0 | J190: 0 | K190: 0 | L190: 0 | M190: 0 | N190: 0 | O190: 0 | P190: 0 | Q190: 0 | R190: 0 | S190: 0 | T190: 0 | U190: 0 | V190: 0 | W190: 0 | X190: 0 | Y190: 0 | Z190: 0 | AA190: 0 | AB190: 0 | AC190: 0 | AD190: 0
C191: XX2 | D191: Tlh12 | E191: =IFERROR(VLOOKUP(E82,$B$16:$L$27,3+MATCH($C191,$E$15:$L$15,0),0)*$C82*E$85,0) -> 0 | F191: 0 | G191: 0 | H191: 0 | I191: 0 | J191: 0 | K191: 0 | L191: 0 | M191: 0 | N191: 0 | O191: 0 | P191: 0 | Q191: 0 | R191: 0 | S191: 0 | T191: 0 | U191: 0 | V191: 0 | W191: 0 | X191: 0 | Y191: 0 | Z191: 0 | AA191: 0 | AB191: 0 | AC191: 0 | AD191: 0
E192: =IFERROR(VLOOKUP(E83,$B$16:$L$27,3+MATCH($C192,$E$15:$L$15,0),0)*$C83*E$85,0) -> 0 | F192: 0 | G192: 0 | H192: 0 | I192: 0 | J192: 0 | K192: 0 | L192: 0 | M192: 0 | N192: 0 | O192: 0 | P192: 0 | Q192: 0 | R192: 0 | S192: 0 | T192: 0 | U192: 0 | V192: 0 | W192: 0 | X192: 0 | Y192: 0 | Z192: 0 | AA192: 0 | AB192: 0 | AC192: 0 | AD192: 0
E193: =IFERROR(VLOOKUP(E84,$B$16:$L$27,3+MATCH($C193,$E$15:$L$15,0),0)*$C84*E$85,0) -> 0 | F193: 0 | G193: 0 | H193: 0 | I193: 0 | J193: 0 | K193: 0 | L193: 0 | M193: 0 | N193: 0 | O193: 0 | P193: 0 | Q193: 0 | R193: 0 | S193: 0 | T193: 0 | U193: 0 | V193: 0 | W193: 0 | X193: 0 | Y193: 0 | Z193: 0 | AA193: 0 | AB193: 0 | AC193: 0 | AD193: 0
B194: ="Total de " -> Total de | C194: =C180 -> XX2 | D194: =SUM(E194:AD194) -> 0 | E194: =SUM(E180:E193) -> 0 | F194: =SUM(F180:F193) -> 0 | G194: =SUM(G180:G193) -> 0 | H194: =SUM(H180:H193) -> 0 | I194: =SUM(I180:I193) -> 0 | J194: =SUM(J180:J193) -> 0 | K194: =SUM(K180:K193) -> 0 | L194: =SUM(L180:L193) -> 0 | M194: =SUM(M180:M193) -> 0 | N194: =SUM(N180:N193) -> 0 | O194: =SUM(O180:O193) -> 0 | P194: =SUM(P180:P193) -> 0 | Q194: =SUM(Q180:Q193) -> 0 | R194: =SUM(R180:R193) -> 0 | S194: =SUM(S180:S193) -> 0 | T194: =SUM(T180:T193) -> 0 | U194: =SUM(U180:U193) -> 0 | V194: =SUM(V180:V193) -> 0 | W194: =SUM(W180:W193) -> 0 | X194: =SUM(X180:X193) -> 0 | Y194: =SUM(Y180:Y193) -> 0 | Z194: =SUM(Z180:Z193) -> 0 | AA194: =SUM(AA180:AA193) -> 0 | AB194: =SUM(AB180:AB193) -> 0 | AC194: =SUM(AC180:AC193) -> 0 | AD194: =SUM(AD180:AD193) -> 0
B196: Receitas com produção (mil R$) | E196: =E$68 -> 1 | F196: 2 | G196: 3 | H196: 4 | I196: 5 | J196: 6 | K196: 7 | L196: 8 | M196: 9 | N196: 10 | O196: 11 | P196: 12 | Q196: 13 | R196: 14 | S196: 15 | T196: 16 | U196: 17 | V196: 18 | W196: 19 | X196: 20 | Y196: 21 | Z196: 22 | AA196: 23 | AB196: 24 | AC196: 25 | AD196: 26
E197: =E$69 -> 2024 | F197: 2025 | G197: 2026 | H197: 2027 | I197: 2028 | J197: 2029 | K197: 2030 | L197: 2031 | M197: 2032 | N197: 2033 | O197: 2034 | P197: 2035 | Q197: 2036 | R197: 2037 | S197: 2038 | T197: 2039 | U197: 2040 | V197: 2041 | W197: 2042 | X197: 2043 | Y197: 2044 | Z197: 2045 | AA197: 2046 | AB197: 2047 | AC197: 2048 | AD197: 2049
B198: Área Colhida | C198: =B16 -> CR5 | D198: =SUM(E198:AD198) -> 0 | E198: =SUMIF(E$71:E$84,$C198,$C$71:$C$84) -> 0 | F198: 0 | G198: 0 | H198: 0 | I198: 0 | J198: 0 | K198: 0 | L198: 0 | M198: 0 | N198: 0 | O198: =SUMIF(O$71:O$84,$C198,$C$71:$C$84) -> 0 | P198: 0 | Q198: 0 | R198: 0 | S198: 0 | T198: 0 | U198: 0 | V198: 0 | W198: 0 | X198: 0 | Y198: =SUMIF(Y$71:Y$84,$C198,$C$71:$C$84) -> 0 | Z198: 0 | AA198: 0 | AB198: 0 | AC198: 0 | AD198: 0
C199: CR6 | D199: 12000 | E199: 0 | F199: 0 | G199: 0 | H199: 0 | I199: 0 | J199: 0 | K199: 0 | L199: 0 | M199: 0 | N199: 0 | O199: 0 | P199: 0 | Q199: 0 | R199: 2000 | S199: 2000 | T199: 2000 | U199: 2000 | V199: 2000 | W199: 2000 | X199: 0 | Y199: 0 | Z199: 0 | AA199: 0 | AB199: 0 | AC199: 0 | AD199: 0
C200: CR7 | D200: 0 | E200: 0 | F200: 0 | G200: 0 | H200: 0 | I200: 0 | J200: 0 | K200: 0 | L200: 0 | M200: 0 | N200: 0 | O200: 0 | P200: 0 | Q200: 0 | R200: 0 | S200: 0 | T200: 0 | U200: 0 | V200: 0 | W200: 0 | X200: 0 | Y200: 0 | Z200: 0 | AA200: 0 | AB200: 0 | AC200: 0 | AD200: 0
C201: CR8 | D201: 0 | E201: 0 | F201: 0 | G201: 0 | H201: 0 | I201: 0 | J201: 0 | K201: 0 | L201: 0 | M201: 0 | N201: 0 | O201: 0 | P201: 0 | Q201: 0 | R201: 0 | S201: 0 | T201: 0 | U201: 0 | V201: 0 | W201: 0 | X201: 0 | Y201: 0 | Z201: 0 | AA201: 0 | AB201: 0 | AC201: 0 | AD201: 0
C202: CC5 | D202: 0 | E202: 0 | F202: 0 | G202: 0 | H202: 0 | I202: 0 | J202: 0 | K202: 0 | L202: 0 | M202: 0 | N202: 0 | O202: 0 | P202: 0 | Q202: 0 | R202: 0 | S202: 0 | T202: 0 | U202: 0 | V202: 0 | W202: 0 | X202: 0 | Y202: 0 | Z202: 0 | AA202: 0 | AB202: 0 | AC202: 0 | AD202: 0
C203: CC6 | D203: 12000 | E203: 0 | F203: 0 | G203: 0 | H203: 0 | I203: 0 | J203: 0 | K203: 0 | L203: 2000 | M203: 2000 | N203: 2000 | O203: 2000 | P203: 2000 | Q203: 2000 | R203: 0 | S203: 0 | T203: 0 | U203: 0 | V203: 0 | W203: 0 | X203: 0 | Y203: 0 | Z203: 0 | AA203: 0 | AB203: 0 | AC203: 0 | AD203: 0
C204: CC7 | D204: 0 | E204: 0 | F204: 0 | G204: 0 | H204: 0 | I204: 0 | J204: 0 | K204: 0 | L204: 0 | M204: 0 | N204: 0 | O204: 0 | P204: 0 | Q204: 0 | R204: 0 | S204: 0 | T204: 0 | U204: 0 | V204: 0 | W204: 0 | X204: 0 | Y204: 0 | Z204: 0 | AA204: 0 | AB204: 0 | AC204: 0 | AD204: 0
C205: CC8 | D205: 0 | E205: 0 | F205: 0 | G205: 0 | H205: 0 | I205: 0 | J205: 0 | K205: 0 | L205: 0 | M205: 0 | N205: 0 | O205: 0 | P205: 0 | Q205: 0 | R205: 0 | S205: 0 | T205: 0 | U205: 0 | V205: 0 | W205: 0 | X205: 0 | Y205: 0 | Z205: 0 | AA205: 0 | AB205: 0 | AC205: 0 | AD205: 0
C206: CF5 | D206: 0 | E206: 0 | F206: 0 | G206: 0 | H206: 0 | I206: 0 | J206: 0 | K206: 0 | L206: 0 | M206: 0 | N206: 0 | O206: 0 | P206: 0 | Q206: 0 | R206: 0 | S206: 0 | T206: 0 | U206: 0 | V206: 0 | W206: 0 | X206: 0 | Y206: 0 | Z206: 0 | AA206: 0 | AB206: 0 | AC206: 0 | AD206: 0
C207: CF6 | D207: 12000 | E207: 0 | F207: 0 | G207: 0 | H207: 0 | I207: 0 | J207: 0 | K207: 0 | L207: 0 | M207: 0 | N207: 0 | O207: 0 | P207: 0 | Q207: 0 | R207: 0 | S207: 0 | T207: 0 | U207: 0 | V207: 0 | W207: 0 | X207: 2000 | Y207: 2000 | Z207: 2000 | AA207: 2000 | AB207: 2000 | AC207: 2000 | AD207: 0
C208: CF7 | D208: 0 | E208: 0 | F208: 0 | G208: 0 | H208: 0 | I208: 0 | J208: 0 | K208: 0 | L208: 0 | M208: 0 | N208: 0 | O208: 0 | P208: 0 | Q208: 0 | R208: 0 | S208: 0 | T208: 0 | U208: 0 | V208: 0 | W208: 0 | X208: 0 | Y208: 0 | Z208: 0 | AA208: 0 | AB208: 0 | AC208: 0 | AD208: 0
C209: CF8 | D209: 0 | E209: 0 | F209: 0 | G209: 0 | H209: 0 | I209: 0 | J209: 0 | K209: 0 | L209: 0 | M209: 0 | N209: 0 | O209: 0 | P209: 0 | Q209: 0 | R209: 0 | S209: 0 | T209: 0 | U209: 0 | V209: 0 | W209: 0 | X209: 0 | Y209: 0 | Z209: 0 | AA209: 0 | AB209: 0 | AC209: 0 | AD209: 0
B210: Área Colhida (ha) | C210: =SUM(E210:AD210) -> 36000 | E210: =SUM(E198:E208) -> 0 | F210: =SUM(F198:F208) -> 0 | G210: 0 | H210: 0 | I210: 0 | J210: 0 | K210: 0 | L210: =SUM(L198:L208) -> 2000 | M210: 2000 | N210: 2000 | O210: 2000 | P210: 2000 | Q210: 2000 | R210: 2000 | S210: 2000 | T210: 2000 | U210: 2000 | V210: 2000 | W210: 2000 | X210: 2000 | Y210: 2000 | Z210: 2000 | AA210: 2000 | AB210: 2000 | AC210: 2000 | AD210: 0
B211: Produtividade média (m3/ha) | C211: =SUM(D149,D164,D179,D194)/C210 -> 257.1146667 | E211: =IF(E210>0,SUM(E149,E164,E179,E194)/E210,0) -> 0 | F211: 0 | G211: 0 | H211: 0 | I211: 0 | J211: 0 | K211: 0 | L211: 265.1495 | M211: 265.1495 | N211: 265.1495 | O211: 265.1495 | P211: 265.1495 | Q211: 265.1495 | R211: 265.1495 | S211: 265.1495 | T211: 265.1495 | U211: 265.1495 | V211: 265.1495 | W211: 265.1495 | X211: 241.045 | Y211: 241.045 | Z211: 241.045 | AA211: 241.045 | AB211: 241.045 | AC211: 241.045 | AD211: 0
B212: Preços (R$/m3) | C212: =C149 -> CEL | D212: =VLOOKUP(C212,$B$9:$C$12,2,0) -> 150 | E212: =$D212*((1+Infla)^E$196) -> 150 | F212: 150 | G212: 150 | H212: 150 | I212: 150 | J212: 150 | K212: 150 | L212: 150 | M212: 150 | N212: 150 | O212: =$D212*((1+Infla)^O$196) -> 150 | P212: 150 | Q212: 150 | R212: 150 | S212: 150 | T212: 150 | U212: 150 | V212: 150 | W212: 150 | X212: 150 | Y212: =$D212*((1+Infla)^Y$196) -> 150 | Z212: 150 | AA212: 150 | AB212: 150 | AC212: 150 | AD212: 150
C213: =C164 -> BIO | D213: =VLOOKUP(C213,$B$9:$C$12,2,0) -> 0 | E213: 0 | F213: 0 | G213: 0 | H213: 0 | I213: 0 | J213: 0 | K213: 0 | L213: 0 | M213: 0 | N213: 0 | O213: 0 | P213: 0 | Q213: 0 | R213: 0 | S213: 0 | T213: 0 | U213: 0 | V213: 0 | W213: 0 | X213: 0 | Y213: 0 | Z213: 0 | AA213: 0 | AB213: 0 | AC213: 0 | AD213: 0
... 20 more rows

Sheet Financeiro
B1: Premissas financeiras complementares
B2: Variação real do preço de Terra | C2: 0.02 | D2: a.a.
B3: Caixa | C3: 1000 | D3: Exigência de caixa mínimo (mil R$)
C5: =Florestal!C2+1 -> 2024 | D5: =C5+1 -> 2025 | E5: =D5+1 -> 2026 | F5: 2027 | G5: 2028 | H5: 2029 | I5: 2030 | J5: 2031 | K5: 2032 | L5: 2033 | M5: 2034 | N5: 2035 | O5: 2036 | P5: 2037 | Q5: 2038 | R5: 2039 | S5: 2040 | T5: 2041 | U5: 2042 | V5: 2043 | W5: 2044 | X5: 2045 | Y5: 2046 | Z5: 2047 | AA5: 2048 | AB5: 2049
B6: Índice Preço de Terra | C6: =(1+$C$2) -> 1.02 | D6: =(1+$C$2)*C6 -> 1.0404 | E6: =(1+$C$2)*D6 -> 1.061208 | F6: 1.08243216 | G6: 1.104080803 | H6: 1.126162419 | I6: 1.148685668 | J6: 1.171659381 | K6: 1.195092569 | L6: 1.21899442 | M6: 1.243374308 | N6: 1.268241795 | O6: 1.29360663 | P6: 1.319478763 | Q6: 1.345868338 | R6: 1.372785705 | S6: 1.400241419 | T6: 1.428246248 | U6: 1.456811173 | V6: 1.485947396 | W6: 1.515666344 | X6: 1.545979671 | Y6: 1.576899264 | Z6: 1.608437249 | AA6: 1.640605994 | AB6: 1.673418114
B8: Fluxo Financeiro (mil R$)
C9: =Florestal!E68 -> 1 | D9: =Florestal!F68 -> 2 | E9: =Florestal!G68 -> 3 | F9: =Florestal!H68 -> 4 | G9: =Florestal!I68 -> 5 | H9: =Florestal!J68 -> 6 | I9: =Florestal!K68 -> 7 | J9: =Florestal!L68 -> 8 | K9: =Florestal!M68 -> 9 | L9: =Florestal!N68 -> 10 | M9: =Florestal!O68 -> 11 | N9: =Florestal!P68 -> 12 | O9: =Florestal!Q68 -> 13 | P9: =Florestal!R68 -> 14 | Q9: =Florestal!S68 -> 15 | R9: =Florestal!T68 -> 16 | S9: =Florestal!U68 -> 17 | T9: =Florestal!V68 -> 18 | U9: =Florestal!W68 -> 19 | V9: =Florestal!X68 -> 20 | W9: =Florestal!Y68 -> 21 | X9: =Florestal!Z68 -> 22 | Y9: =Florestal!AA68 -> 23 | Z9: =Florestal!AB68 -> 24 | AA9: =Florestal!AC68 -> 25 | AB9: =Florestal!AD68 -> 26
C10: =C5 -> 2024 | D10: 2025 | E10: 2026 | F10: 2027 | G10: 2028 | H10: 2029 | I10: 2030 | J10: 2031 | K10: 2032 | L10: 2033 | M10: 2034 | N10: 2035 | O10: 2036 | P10: 2037 | Q10: 2038 | R10: 2039 | S10: 2040 | T10: 2041 | U10: 2042 | V10: 2043 | W10: 2044 | X10: 2045 | Y10: 2046 | Z10: 2047 | AA10: 2048 | AB10: 2049
B11: Receitas | C11: =Florestal!E221 -> 0 | D11: =Florestal!F221 -> 0 | E11: =Florestal!G221 -> 0 | F11: =Florestal!H221 -> 0 | G11: =Florestal!I221 -> 0 | H11: =Florestal!J221 -> 0 | I11: =Florestal!K221 -> 0 | J11: =Florestal!L221 -> 79544.85 | K11: =Florestal!M221 -> 79544.85 | L11: =Florestal!N221 -> 79544.85 | M11: =Florestal!O221 -> 79544.85 | N11: =Florestal!P221 -> 79544.85 | O11: =Florestal!Q221 -> 79544.85 | P11: =Florestal!R221 -> 79544.85 | Q11: =Florestal!S221 -> 79544.85 | R11: =Florestal!T221 -> 79544.85 | S11: =Florestal!U221 -> 79544.85 | T11: =Florestal!V221 -> 79544.85 | U11: =Florestal!W221 -> 79544.85 | V11: =Florestal!X221 -> 72313.5 | W11: =Florestal!Y221 -> 72313.5 | X11: =Florestal!Z221 -> 72313.5 | Y11: =Florestal!AA221 -> 72313.5 | Z11: =Florestal!AB221 -> 72313.5 | AA11: =Florestal!AC221 -> 72313.5 | AB11: =Florestal!AD221 -> 0
B12: Despesas Operacionais | C12: =Florestal!E128 -> 0 | D12: =Florestal!F128 -> -10000 | E12: =Florestal!G128 -> -12000 | F12: =Florestal!H128 -> -12500 | G12: =Florestal!I128 -> -13000 | H12: =Florestal!J128 -> -13500 | I12: =Florestal!K128 -> -14000 | J12: =Florestal!L128 -> -47446.6775 | K12: =Florestal!M128 -> -47446.6775 | L12: =Florestal!N128 -> -47446.6775 | M12: =Florestal!O128 -> -47446.6775 | N12: =Florestal!P128 -> -47446.6775 | O12: =Florestal!Q128 -> -47446.6775 | P12: =Florestal!R128 -> -50446.6775 | Q12: =Florestal!S128 -> -50446.6775 | R12: =Florestal!T128 -> -50446.6775 | S12: =Florestal!U128 -> -50446.6775 | T12: =Florestal!V128 -> -50446.6775 | U12: =Florestal!W128 -> -50446.6775 | V12: =Florestal!X128 -> -38951.525 | W12: =Florestal!Y128 -> -36951.525 | X12: =Florestal!Z128 -> -36451.525 | Y12: =Florestal!AA128 -> -35951.525 | Z12: =Florestal!AB128 -> -35451.525 | AA12: =Florestal!AC128 -> -34951.525 | AB12: =Florestal!AD128 -> 0
B13: Arrendamento | C13: =Florestal!E229 -> 0 | D13: =Florestal!F229 -> 0 | E13: =Florestal!G229 -> 0 | F13: =Florestal!H229 -> 0 | G13: =Florestal!I229 -> 0 | H13: =Florestal!J229 -> 0 | I13: =Florestal!K229 -> 0 | J13: =Florestal!L229 -> 0 | K13: =Florestal!M229 -> 0 | L13: =Florestal!N229 -> 0 | M13: =Florestal!O229 -> 0 | N13: =Florestal!P229 -> 0 | O13: =Florestal!Q229 -> 0 | P13: =Florestal!R229 -> 0 | Q13: =Florestal!S229 -> 0 | R13: =Florestal!T229 -> 0 | S13: =Florestal!U229 -> 0 | T13: =Florestal!V229 -> 0 | U13: =Florestal!W229 -> 0 | V13: =Florestal!X229 -> 0 | W13: =Florestal!Y229 -> 0 | X13: =Florestal!Z229 -> 0 | Y13: =Florestal!AA229 -> 0 | Z13: =Florestal!AB229 -> 0 | AA13: =Florestal!AC229 -> 0 | AB13: =Florestal!AD229 -> 0
B14: Gestão Florestal | C14: =Florestal!E232 -> -200 | D14: =Florestal!F232 -> -400 | E14: =Florestal!G232 -> -600 | F14: =Florestal!H232 -> -800 | G14: =Florestal!I232 -> -1000 | H14: =Florestal!J232 -> -1200 | I14: =Florestal!K232 -> -1200 | J14: =Florestal!L232 -> -1200 | K14: =Florestal!M232 -> -1200 | L14: =Florestal!N232 -> -1200 | M14: =Florestal!O232 -> -1200 | N14: =Florestal!P232 -> -1200 | O14: =Florestal!Q232 -> -1200 | P14: =Florestal!R232 -> -1200 | Q14: =Florestal!S232 -> -1200 | R14: =Florestal!T232 -> -1200 | S14: =Florestal!U232 -> -1200 | T14: =Florestal!V232 -> -1200 | U14: =Florestal!W232 -> -1200 | V14: =Florestal!X232 -> -1200 | W14: =Florestal!Y232 -> -1000 | X14: =Florestal!Z232 -> -800 | Y14: =Florestal!AA232 -> -600 | Z14: =Florestal!AB232 -> -400 | AA14: =Florestal!AC232 -> -200 | AB14: =Florestal!AD232 -> 0
B15: PIS & Cofins | C15: =-(Florestal!$E$2+Florestal!$E$3)*C11 -> 0 | D15: =-(Florestal!$E$2+Florestal!$E$3)*D11 -> 0 | E15: =-(Florestal!$E$2+Florestal!$E$3)*E11 -> 0 | F15: =-(Florestal!$E$2+Florestal!$E$3)*F11 -> 0 | G15: =-(Florestal!$E$2+Florestal!$E$3)*G11 -> 0 | H15: =-(Florestal!$E$2+Florestal!$E$3)*H11 -> 0 | I15: =-(Florestal!$E$2+Florestal!$E$3)*I11 -> 0 | J15: =-(Florestal!$E$2+Florestal!$E$3)*J11 -> -2903.387025 | K15: =-(Florestal!$E$2+Florestal!$E$3)*K11 -> -2903.387025 | L15: =-(Florestal!$E$2+Florestal!$E$3)*L11 -> -2903.387025 | M15: =-(Florestal!$E$2+Florestal!$E$3)*M11 -> -2903.387025 | N15: =-(Florestal!$E$2+Florestal!$E$3)*N11 -> -2903.387025 | O15: =-(Florestal!$E$2+Florestal!$E$3)*O11 -> -2903.387025 | P15: =-(Florestal!$E$2+Florestal!$E$3)*P11 -> -2903.387025 | Q15: =-(Florestal!$E$2+Florestal!$E$3)*Q11 -> -2903.387025 | R15: =-(Florestal!$E$2+Florestal!$E$3)*R11 -> -2903.387025 | S15: =-(Florestal!$E$2+Florestal!$E$3)*S11 -> -2903.387025 | T15: =-(Florestal!$E$2+Florestal!$E$3)*T11 -> -2903.387025 | U15: =-(Florestal!$E$2+Florestal!$E$3)*U11 -> -2903.387025 | V15: =-(Florestal!$E$2+Florestal!$E$3)*V11 -> -2639.44275 | W15: =-(Florestal!$E$2+Florestal!$E$3)*W11 -> -2639.44275 | X15: =-(Florestal!$E$2+Florestal!$E$3)*X11 -> -2639.44275 | Y15: =-(Florestal!$E$2+Florestal!$E$3)*Y11 -> -2639.44275 | Z15: =-(Florestal!$E$2+Florestal!$E$3)*Z11 -> -2639.44275 | AA15: =-(Florestal!$E$2+Florestal!$E$3)*AA11 -> -2639.44275 | AB15: =-(Florestal!$E$2+Florestal!$E$3)*AB11 -> 0
B16: Deduções da Receita (Ex comissões) | C16: 0 | D16: 0 | E16: 0 | F16: 0 | G16: 0 | H16: 0 | I16: 0 | J16: 0 | K16: 0 | L16: 0 | M16: 0 | N16: 0 | O16: 0 | P16: 0 | Q16: 0 | R16: 0 | S16: 0 | T16: 0 | U16: 0 | V16: 0 | W16: 0 | X16: 0 | Y16: 0 | Z16: 0 | AA16: 0 | AB16: 0
B18: Earnings Before Interest, Taxes, Depreciation and Amortization - EBITDA
B19: EBITDA (mil R$) | C19: =SUM(C11:C16) -> -200 | D19: -10400 | E19: -12600 | F19: -13300 | G19: -14000 | H19: -14700 | I19: -15200 | J19: 27994.78548 | K19: 27994.78548 | L19: 27994.78548 | M19: 27994.78548 | N19: 27994.78548 | O19: 27994.78548 | P19: 24994.78548 | Q19: 24994.78548 | R19: 24994.78548 | S19: 24994.78548 | T19: 24994.78548 | U19: 24994.78548 | V19: 29522.53225 | W19: 31722.53225 | X19: 32422.53225 | Y19: 33122.53225 | Z19: 33822.53225 | AA19: 34522.53225 | AB19: 0
B20: Depreciação | C20: 0 | D20: 0 | E20: 0 | F20: 0 | G20: 0 | H20: 0 | I20: 0 | J20: 0 | K20: 0 | L20: 0 | M20: 0 | N20: 0 | O20: 0 | P20: 0 | Q20: 0 | R20: 0 | S20: 0 | T20: 0 | U20: 0 | V20: 0 | W20: 0 | X20: 0 | Y20: 0 | Z20: 0 | AA20: 0 | AB20: 0
B22: Earnings Before Interest & Tax - EBIT
B23: EBIT (mil R$) | C23: =SUM(C19:C20) -> -200 | D23: -10400 | E23: -12600 | F23: -13300 | G23: -14000 | H23: -14700 | I23: -15200 | J23: 27994.78548 | K23: 27994.78548 | L23: 27994.78548 | M23: 27994.78548 | N23: 27994.78548 | O23: 27994.78548 | P23: 24994.78548 | Q23: 24994.78548 | R23: 24994.78548 | S23: 24994.78548 | T23: 24994.78548 | U23: 24994.78548 | V23: 29522.53225 | W23: 31722.53225 | X23: 32422.53225 | Y23: 33122.53225 | Z23: 33822.53225 | AA23: 34522.53225 | AB23: 0
B24: Despesas Financeiras | C24: 0 | D24: 0 | E24: 0 | F24: 0 | G24: 0 | H24: 0 | I24: 0 | J24: 0 | K24: 0 | L24: 0 | M24: 0 | N24: 0 | O24: 0 | P24: 0 | Q24: 0 | R24: 0 | S24: 0 | T24: 0 | U24: 0 | V24: 0 | W24: 0 | X24: 0 | Y24: 0 | Z24: 0 | AA24: 0 | AB24: 0
B26: Earnings Before Tax - EBT
B27: EBT (mil R$) | C27: =SUM(C23:C24) -> -200 | D27: -10400 | E27: -12600 | F27: -13300 | G27: -14000 | H27: -14700 | I27: -15200 | J27: 27994.78548 | K27: 27994.78548 | L27: 27994.78548 | M27: 27994.78548 | N27: 27994.78548 | O27: 27994.78548 | P27: 24994.78548 | Q27: 24994.78548 | R27: 24994.78548 | S27: 24994.78548 | T27: 24994.78548 | U27: 24994.78548 | V27: 29522.53225 | W27: 31722.53225 | X27: 32422.53225 | Y27: 33122.53225 | Z27: 33822.53225 | AA27: 34522.53225 | AB27: 0
B28: IRPJ, CSLL | C28: =-(Florestal!$E$4+Florestal!$E$5)*C11 -> 0 | D28: =-(Florestal!$E$4+Florestal!$E$5)*D11 -> 0 | E28: =-(Florestal!$E$4+Florestal!$E$5)*E11 -> 0 | F28: =-(Florestal!$E$4+Florestal!$E$5)*F11 -> 0 | G28: =-(Florestal!$E$4+Florestal!$E$5)*G11 -> 0 | H28: =-(Florestal!$E$4+Florestal!$E$5)*H11 -> 0 | I28: =-(Florestal!$E$4+Florestal!$E$5)*I11 -> 0 | J28: =-(Florestal!$E$4+Florestal!$E$5)*J11 -> -2449.98138 | K28: =-(Florestal!$E$4+Florestal!$E$5)*K11 -> -2449.98138 | L28: =-(Florestal!$E$4+Florestal!$E$5)*L11 -> -2449.98138 | M28: =-(Florestal!$E$4+Florestal!$E$5)*M11 -> -2449.98138 | N28: =-(Florestal!$E$4+Florestal!$E$5)*N11 -> -2449.98138 | O28: =-(Florestal!$E$4+Florestal!$E$5)*O11 -> -2449.98138 | P28: =-(Florestal!$E$4+Florestal!$E$5)*P11 -> -2449.98138 | Q28: =-(Florestal!$E$4+Florestal!$E$5)*Q11 -> -2449.98138 | R28: =-(Florestal!$E$4+Florestal!$E$5)*R11 -> -2449.98138 | S28: =-(Florestal!$E$4+Florestal!$E$5)*S11 -> -2449.98138 | T28: =-(Florestal!$E$4+Florestal!$E$5)*T11 -> -2449.98138 | U28: =-(Florestal!$E$4+Florestal!$E$5)*U11 -> -2449.98138 | V28: =-(Florestal!$E$4+Florestal!$E$5)*V11 -> -2227.2558 | W28: =-(Florestal!$E$4+Florestal!$E$5)*W11 -> -2227.2558 | X28: =-(Florestal!$E$4+Florestal!$E$5)*X11 -> -2227.2558 | Y28: =-(Florestal!$E$4+Florestal!$E$5)*Y11 -> -2227.2558 | Z28: =-(Florestal!$E$4+Florestal!$E$5)*Z11 -> -2227.2558 | AA28: =-(Florestal!$E$4+Florestal!$E$5)*AA11 -> -2227.2558 | AB28: =-(Florestal!$E$4+Florestal!$E$5)*AB11 -> 0
B30: Lucro Líquido (mil R$) | C30: =SUM(C27:C28) -> -200 | D30: -10400 | E30: -12600 | F30: -13300 | G30: -14000 | H30: -14700 | I30: -15200 | J30: 25544.8041 | K30: 25544.8041 | L30: 25544.8041 | M30: 25544.8041 | N30: 25544.8041 | O30: 25544.8041 | P30: 22544.8041 | Q30: 22544.8041 | R30: 22544.8041 | S30: 22544.8041 | T30: 22544.8041 | U30: 22544.8041 | V30: 27295.27645 | W30: 29495.27645 | X30: 30195.27645 | Y30: 30895.27645 | Z30: 31595.27645 | AA30: 32295.27645 | AB30: 0
B32: Fluxo de Caixa do Empreendimento Florestal (mil R$)
B33: Investimento em Terra | C33: =SUM(Florestal!E227:E228) -> -15300 | D33: =SUM(Florestal!F227:F228) -> -15606 | E33: =SUM(Florestal!G227:G228) -> -15918.12 | F33: =SUM(Florestal!H227:H228) -> -16236.4824 | G33: =SUM(Florestal!I227:I228) -> -16561.21205 | H33: =SUM(Florestal!J227:J228) -> -16892.43629 | I33: =SUM(Florestal!K227:K228) -> 0 | J33: =SUM(Florestal!L227:L228) -> 0 | K33: =SUM(Florestal!M227:M228) -> 0 | L33: =SUM(Florestal!N227:N228) -> 0 | M33: =SUM(Florestal!O227:O228) -> 0 | N33: =SUM(Florestal!P227:P228) -> 0 | O33: =SUM(Florestal!Q227:Q228) -> 0 | P33: =SUM(Florestal!R227:R228) -> 0 | Q33: =SUM(Florestal!S227:S228) -> 0 | R33: =SUM(Florestal!T227:T228) -> 0 | S33: =SUM(Florestal!U227:U228) -> 0 | T33: =SUM(Florestal!V227:V228) -> 0 | U33: =SUM(Florestal!W227:W228) -> 0 | V33: =SUM(Florestal!X227:X228) -> 0 | W33: =SUM(Florestal!Y227:Y228) -> 22734.99516 | X33: =SUM(Florestal!Z227:Z228) -> 23189.69506 | Y33: =SUM(Florestal!AA227:AA228) -> 23653.48896 | Z33: =SUM(Florestal!AB227:AB228) -> 24126.55874 | AA33: =SUM(Florestal!AC227:AC228) -> 24609.08992 | AB33: =SUM(Florestal!AD227:AD228) -> 25101.27172
B34: Investimento em Equipamentos | C34: =Florestal!E231 -> 0 | D34: =Florestal!F231 -> -300 | E34: =Florestal!G231 -> -360 | F34: =Florestal!H231 -> -375 | G34: =Florestal!I231 -> -390 | H34: =Florestal!J231 -> -405 | I34: =Florestal!K231 -> -420 | J34: =Florestal!L231 -> -270 | K34: =Florestal!M231 -> -270 | L34: =Florestal!N231 -> -270 | M34: =Florestal!O231 -> -270 | N34: =Florestal!P231 -> -270 | O34: =Florestal!Q231 -> -270 | P34: =Florestal!R231 -> -360 | Q34: =Florestal!S231 -> -360 | R34: =Florestal!T231 -> -360 | S34: =Florestal!U231 -> -360 | T34: =Florestal!V231 -> -360 | U34: =Florestal!W231 -> -360 | V34: =Florestal!X231 -> -120 | W34: =Florestal!Y231 -> -60 | X34: =Florestal!Z231 -> -45 | Y34: =Florestal!AA231 -> -30 | Z34: =Florestal!AB231 -> -15 | AA34: =Florestal!AC231 -> 0 | AB34: =Florestal!AD231 -> 0
B35: Saldo Florestal | C35: =C30+C33+C34 -> -15500 | D35: -26306 | E35: -28878.12 | F35: -29911.4824 | G35: -30951.21205 | H35: -31997.43629 | I35: -15620 | J35: 25274.8041 | K35: 25274.8041 | L35: 25274.8041 | M35: 25274.8041 | N35: 25274.8041 | O35: 25274.8041 | P35: 22184.8041 | Q35: 22184.8041 | R35: 22184.8041 | S35: 22184.8041 | T35: 22184.8041 | U35: 22184.8041 | V35: 27175.27645 | W35: 52170.27161 | X35: 53339.97151 | Y35: 54518.76541 | Z35: 55706.83519 | AA35: 56904.36637 | AB35: 25101.27172
B36: Acumulado | C36: =C35 -> -15500 | D36: =SUM($C$35:D35) -> -41806 | E36: =SUM($C$35:E35) -> -70684.12 | F36: =SUM($C$35:F35) -> -100595.6024 | G36: =SUM($C$35:G35) -> -131546.8144 | H36: =SUM($C$35:H35) -> -163544.2507 | I36: =SUM($C$35:I35) -> -179164.2507 | J36: =SUM($C$35:J35) -> -153889.4466 | K36: =SUM($C$35:K35) -> -128614.6425 | L36: =SUM($C$35:L35) -> -103339.8385 | M36: =SUM($C$35:M35) -> -78065.03436 | N36: =SUM($C$35:N35) -> -52790.23026 | O36: =SUM($C$35:O35) -> -27515.42617 | P36: =SUM($C$35:P35) -> -5330.622072 | Q36: =SUM($C$35:Q35) -> 16854.18202 | R36: =SUM($C$35:R35) -> 39038.98612 | S36: =SUM($C$35:S35) -> 61223.79021 | T36: =SUM($C$35:T35) -> 83408.59431 | U36: =SUM($C$35:U35) -> 105593.3984 | V36: =SUM($C$35:V35) -> 132768.6749 | W36: =SUM($C$35:W35) -> 184938.9465 | X36: =SUM($C$35:X35) -> 238278.918 | Y36: =SUM($C$35:Y35) -> 292797.6834 | Z36: =SUM($C$35:Z35) -> 348504.5186 | AA36: =SUM($C$35:AA35) -> 405408.8849 | AB36: =SUM($C$35:AB35) -> 430510.1567
B38: Otimização do aporte de capital | C38: =C9 -> 1 | D38: 2 | E38: 3 | F38: 4 | G38: 5 | H38: 6 | I38: 7 | J38: 8 | K38: 9 | L38: 10 | M38: 11 | N38: 12 | O38: 13 | P38: 14 | Q38: 15 | R38: 16 | S38: 17 | T38: 18 | U38: 19 | V38: 20 | W38: 21 | X38: 22 | Y38: 23 | Z38: 24 | AA38: 25 | AB38: 26
C39: =C10 -> 2024 | D39: 2025 | E39: 2026 | F39: 2027 | G39: 2028 | H39: 2029 | I39: 2030 | J39: 2031 | K39: 2032 | L39: 2033 | M39: 2034 | N39: 2035 | O39: 2036 | P39: 2037 | Q39: 2038 | R39: 2039 | S39: 2040 | T39: 2041 | U39: 2042 | V39: 2043 | W39: 2044 | X39: 2045 | Y39: 2046 | Z39: 2047 | AA39: 2048 | AB39: 2049
B41: =SUM(C43:AB43) -> 0 | C41: Total | F41: soma(
B42: =NPV(TxNom,C43:AB43) -> 0 | C42: Valor presente
B43: Aporte de capital
B44: Saldo Após aporte | C44: =C35+C43 -> -15500 | D44: -26306 | E44: -28878.12 | F44: -29911.4824 | G44: -30951.21205 | H44: -31997.43629 | I44: -15620 | J44: 25274.8041 | K44: 25274.8041 | L44: 25274.8041 | M44: 25274.8041 | N44: 25274.8041 | O44: 25274.8041 | P44: 22184.8041 | Q44: 22184.8041 | R44: 22184.8041 | S44: 22184.8041 | T44: 22184.8041 | U44: 22184.8041 | V44: 27175.27645 | W44: 52170.27161 | X44: 53339.97151 | Y44: 54518.76541 | Z44: 55706.83519 | AA44: 56904.36637 | AB44: 25101.27172
B45: Restrição | C45: >= | D45: >= | E45: >= | F45: >= | G45: >= | H45: >= | I45: >= | J45: >= | K45: >= | L45: >= | M45: >= | N45: >= | O45: >= | P45: >= | Q45: >= | R45: >= | S45: >= | T45: >= | U45: >= | V45: >= | W45: >= | X45: >= | Y45: >= | Z45: >= | AA45: >= | AB45: >=
C46: =$C$3 -> 1000 | D46: =$C$3 -> 1000 | E46: =$C$3 -> 1000 | F46: 1000 | G46: 1000 | H46: 1000 | I46: 1000 | J46: 1000 | K46: 1000 | L46: 1000 | M46: 1000 | N46: 1000 | O46: 1000 | P46: 1000 | Q46: 1000 | R46: 1000 | S46: 1000 | T46: 1000 | U46: 1000 | V46: 1000 | W46: 1000 | X46: 1000 | Y46: 1000 | Z46: 1000 | AA46: 1000 | AB46: =$C$3 -> 1000
B47: Saldo Acumulado após aporte | C47: =C44 -> -15500 | D47: =D44+C47 -> -41806 | E47: -70684.12 | F47: -100595.6024 | G47: -131546.8144 | H47: -163544.2507 | I47: -179164.2507 | J47: -153889.4466 | K47: -128614.6425 | L47: -103339.8385 | M47: -78065.03436 | N47: -52790.23026 | O47: -27515.42617 | P47: -5330.622072 | Q47: 16854.18202 | R47: 39038.98612 | S47: 61223.79021 | T47: 83408.59431 | U47: 105593.3984 | V47: 132768.6749 | W47: 184938.9465 | X47: 238278.918 | Y47: 292797.6834 | Z47: 348504.5186 | AA47: 405408.8849 | AB47: 430510.1567
B49: =SUM(C51:AB51) -> 0 | C49: Total
B50: =NPV(TxNom,C51:AB51) -> 0 | C50: Valor presente
B51: Devolução do aporte de capital
B52: Saldo Após pagamento ao Capitalista | C52: =C44-C51 -> -15500 | D52: =D44-D51 -> -26306 | E52: -28878.12 | F52: -29911.4824 | G52: -30951.21205 | H52: -31997.43629 | I52: -15620 | J52: 25274.8041 | K52: 25274.8041 | L52: 25274.8041 | M52: 25274.8041 | N52: 25274.8041 | O52: 25274.8041 | P52: 22184.8041 | Q52: 22184.8041 | R52: 22184.8041 | S52: 22184.8041 | T52: 22184.8041 | U52: 22184.8041 | V52: 27175.27645 | W52: 52170.27161 | X52: 53339.97151 | Y52: 54518.76541 | Z52: 55706.83519 | AA52: 56904.36637 | AB52: 25101.27172
B53: Restrição | C53: >= | D53: >= | E53: >= | F53: >= | G53: >= | H53: >= | I53: >= | J53: >= | K53: >= | L53: >= | M53: >= | N53: >= | O53: >= | P53: >= | Q53: >= | R53: >= | S53: >= | T53: >= | U53: >= | V53: >= | W53: >= | X53: >= | Y53: >= | Z53: >= | AA53: >= | AB53: >=
C54: =$C$3 -> 1000 | D54: =$C$3 -> 1000 | E54: =$C$3 -> 1000 | F54: 1000 | G54: 1000 | H54: 1000 | I54: 1000 | J54: 1000 | K54: 1000 | L54: 1000 | M54: 1000 | N54: 1000 | O54: 1000 | P54: 1000 | Q54: 1000 | R54: 1000 | S54: 1000 | T54: 1000 | U54: 1000 | V54: 1000 | W54: 1000 | X54: 1000 | Y54: 1000 | Z54: 1000 | AA54: 1000 | AB54: =$C$3 -> 1000
B55: Saldo Acumulado após pagamento | C55: =C52 -> -15500 | D55: =D52+C55 -> -41806 | E55: -70684.12 | F55: -100595.6024 | G55: -131546.8144 | H55: -163544.2507 | I55: -179164.2507 | J55: -153889.4466 | K55: -128614.6425 | L55: -103339.8385 | M55: -78065.03436 | N55: -52790.23026 | O55: -27515.42617 | P55: -5330.622072 | Q55: 16854.18202 | R55: 39038.98612 | S55: 61223.79021 | T55: 83408.59431 | U55: 105593.3984 | V55: 132768.6749 | W55: 184938.9465 | X55: 238278.918 | Y55: 292797.6834 | Z55: 348504.5186 | AA55: 405408.8849 | AB55: 430510.1567
B57: Fluxo de caixa do capitalista (mil R$) | C57: =C55-C47 -> 0 | D57: =D55-D47 -> 0 | E57: 0 | F57: 0 | G57: 0 | H57: 0 | I57: 0 | J57: 0 | K57: 0 | L57: 0 | M57: 0 | N57: 0 | O57: 0 | P57: 0 | Q57: 0 | R57: 0 | S57: 0 | T57: 0 | U57: 0 | V57: 0 | W57: 0 | X57: 0 | Y57: 0 | Z57: 0 | AA57: 0 | AB57: 0
B58: =IFERROR(NPV(TxNom,C57:AB57),"") -> 0 | C58: VPL (R$)
B59: =IFERROR(IRR(C57:AB57),"") ->  | C59: TIR (%)
